{"text_format":"1","workbook":"xlsx","n_sheets":5,"sheets":["الواجهة","2علوم تجريبية1","2علوم تجريبية2","3تسيير و إقتصاد","3آداب وفلسفة"],"not_rendered":{"charts":0,"images":2,"macros":1,"external_links":0,"defined_names":0,"comments":0,"pivot_tables":0},"unopened":[],"bounds":{"document_bytes":16777216,"sheet_cells":100000,"rows_first":2000,"rows_last":500,"rows_between":2000,"halvings":0,"cell_chars":16384,"cell_head_chars":4096},"cells_cut":0,"cells_raw":0,"read":"whole","date_system":"1900"}

{"sheet":"الواجهة","index":0,"n_rows":0,"n_cols":0,"rows_kept":0,"cut":false,"hidden":false,"merged":[]}

{"sheet":"2علوم تجريبية1","index":1,"n_rows":127,"n_cols":16,"rows_kept":127,"cut":false,"hidden":false,"merged":[[19,1,19,2],[0,0,0,3],[0,4,2,7],[0,8,0,10],[1,0,1,3],[1,8,1,10],[2,0,2,3],[2,8,2,10],[3,0,4,10],[5,1,5,2],[5,10,5,11],[7,1,7,2],[15,1,15,2],[38,1,38,2],[38,5,38,6],[6,1,6,2],[12,1,12,2],[10,1,10,2],[14,1,14,2],[17,1,17,2],[24,1,24,2],[27,1,27,2],[20,1,20,2],[21,1,21,2],[25,1,25,2],[28,1,28,2],[29,1,29,2],[35,1,35,2],[31,1,31,2],[54,1,54,2],[44,0,44,3],[44,4,46,7],[44,8,44,10],[45,0,45,3],[45,8,45,10],[46,0,46,3],[46,8,46,10],[47,0,48,10],[49,1,49,2],[49,10,49,11],[50,1,50,2],[51,1,51,2],[73,1,73,2],[56,1,56,2],[58,1,58,2],[59,1,59,2],[61,1,61,2],[63,1,63,2],[64,1,64,2],[65,1,65,2],[68,1,68,2],[69,1,69,2],[71,1,71,2],[72,1,72,2],[75,1,75,2],[79,1,79,2],[82,1,82,2],[82,5,82,6],[88,0,88,3],[88,4,90,7],[36,0,37,10],[112,1,112,2],[113,1,113,2],[115,1,115,2],[116,1,116,2],[102,1,102,2],[103,1,103,2],[105,1,105,2],[107,1,107,2],[108,1,108,2],[109,1,109,2],[93,1,93,2],[93,10,93,11],[94,1,94,2],[95,1,95,2],[98,1,98,2],[123,1,123,2],[126,1,126,2],[126,5,126,6],[124,0,125,10],[80,0,81,10],[117,1,117,2],[119,1,119,2],[100,1,100,2],[88,8,88,10],[89,0,89,3],[89,8,89,10],[90,0,90,3],[90,8,90,10],[91,0,92,10],[0,13,1,15],[92,13,92,15],[2,13,3,15],[4,13,4,15],[46,13,47,15],[48,13,48,15],[90,13,91,15]]}
["ثانوية :الشهيد سعيداني أحمد",null,null,null,"الفصل الاول",null,null,null,"الــــــــمادة : اللغة العربية وآدابها",null,null,null,null,"14:23:40"]
["القســــــــــــــــم: 2ع.تج1",null,null,null,null,null,null,null,"الموسم الدراسى: 2019/2018"]
["الأستاذة : حـــــمان يمنى",null,null,null,null,null,null,null,"ولايــــــة : بشــــــار",null,null,null,null,"أنشطـــــــة التقويــــــــم"]
["القـــــــــــــــــــــــــائمة الاسمية للتلاميـــــــــــــــــــــــــــــــــــذ"]
[]
["الرقم","الاسم  و اللقب",null,"م.المستمرة","تط/شفهي","معدل الفروض ","الاختبار","الاختبار*2","المعدل","م.المعامل","الملاحظة",null,null,"تعبير كتابي","واجب منزلي","مشروع"]
[1,"المير عبد الودود",null,"12.00","12.00","07.25","05.00",{"$f":"G7*2","v":10},{"$f":"(H7+F7+E7+D7)/5","v":8.25},{"$f":"I7*2","v":16.5},{"$f":"IF(I7>=18,\"نتائج ممتازة\",IF(I7>=14,\"نتائج جيدة جدا\",IF(I7>=12,\" نتائج جد حسنة\",IF(I7>=10,\"نتائج متوسطة\",IF(I7>=7,\"نتائج ضعيفة\",\"نتائج ضعيفة جدا\")))))","v":"نتائج ضعيفة"}]
[{"$f":"A7+1","v":2},"بلجنة صفاء",null,"14.00","14.00","08.50","13.50",{"$f":"G8*2","v":27},{"$f":"(H8+F8+E8+D8)/5","v":12.7},{"$f":"I8*2","v":25.4}," نتائج جد حسنة"]
[{"$f":"A8+1","v":3},"بلغول محمد ياسر",null,"12.00","12.00","07.00","06.50",13,8.8000000000000007,17.600000000000001,"نتائج ضعيفة"]
[{"$f":"A9+1","v":4},"بن تونسي شيماء",null,"16.50","13.00","12.00","14.00",28,13.9,27.8," نتائج جد حسنة"]
[5,"بن جيمة محمد",null,"12.00","12.00","09.75","09.00",18,10.35,20.7,"نتائج متوسطة"]
[6,"بن شكشك أسماء",null,"17.00","14.00","14.50","12.50",25,14.1,28.2,"نتائج جيدة جدا"]
[7,"بن عيسى إكرام",null,"16.00","14.00","15.00","13.50",27,14.4,28.8,"نتائج جيدة جدا"]
[{"$f":"A13+1","v":8},"بن عيسى صلاح الدين",null,"11.50","11.00","06.25","08.50",17,9.15,18.3,"نتائج ضعيفة"]
[9,"بن كادي عبد الله",null,"13.00","12.00","14.50","07.25",14.5,10.8,21.6,"نتائج متوسطة"]
[10,"بوسيف رشا",null,"15.50","13.00","12.25","11.50",23,12.75,25.5," نتائج جد حسنة"]
[11,"بوشة أسامة علاء الدين",null,"11.00","12.00","05.00","06.50",13,8.1999999999999993,16.399999999999999,"نتائج ضعيفة"]
[12,"بوقنينة مباركة",null,"17.50","14.00","12.00","18.00",36,15.9,31.8,"نتائج جيدة جدا"]
[13,"تاج الدين صفاء فاطمة الزهراء",null,"15.00","12.50","08.00","07.00",14,9.9,19.8,"نتائج ضعيفة"]
[14,"تومي مريم",null,"15.00","12.00","09.00","07.50",15,10.199999999999999,20.399999999999999,"نتائج متوسطة"]
[15,"حنافي رباب",null,"17.00","14.00","14.25","12.50",25,14.05,28.1,"نتائج جيدة جدا"]
[16,"ديبة الزانة",null,"16.00","12.50","11.25","08.00",16,11.15,22.3,"نتائج متوسطة"]
[17,"سليمي بشرى هبة الله",null,"14.00","12.00","09.75","11.75",23.5,11.85,23.7,"نتائج متوسطة"]
[18,"شقرون حميدة فريال",null,"15.00","11.50","14.25","08.00",16,11.35,22.7,"نتائج متوسطة"]
[19,"صديقي أسماء",null,"15.00","14.00","12.00","13.00",26,13.4,26.8," نتائج جد حسنة"]
[20,"عباش بشرى",null,"13.50","12.00","14.75","11.00",22,12.45,24.9," نتائج جد حسنة"]
[21,"عروسي فاطنة شيماء",null,"17.50","14.00","17.50","16.50",33,16.399999999999999,32.799999999999997,"نتائج جيدة جدا"]
[22,"عفوس سندس",null,"17.50","14.00","17.00","16.00",32,16.100000000000001,32.200000000000003,"نتائج جيدة جدا"]
[23,"قايل خولة",null,"16.00","12.00","10.75","13.00",26,12.95,25.9," نتائج جد حسنة"]
[24,"قلاوي إلياس",null,"12.50","10.00","08.75","05.75",11.5,8.5500000000000007,17.100000000000001,"نتائج ضعيفة"]
[25,"مجري صبرينة رشا",null,"15.50","13.00","10.50","10.00",20,11.8,23.6,"نتائج متوسطة"]
[26,"محجوب أسماء",null,"13.00","11.50","10.25","09.50",19,10.75,21.5,"نتائج متوسطة"]
[27,"مشري عبد الرحمان",null,"12.00","11.50","06.50","04.00",8,7.6,15.2,"نتائج ضعيفة"]
[28,"منصور حياة",null,"12.50","10.50","06.50","08.00",16,9.1,18.2,"نتائج ضعيفة"]
[29,"منصوري بوتخيل",null,"12.50","12.00","08.50","06.50",13,9.1999999999999993,18.399999999999999,"نتائج ضعيفة"]
[30,"يوسفي هاجر",null,13,11,7.25,"06.25",12.5,8.75,17.5,"نتائج ضعيفة"]
[]
[]
[null,"فوق المعدل",null,{"$f":"COUNTIF(I7:I36,\">=10\")","v":20},null,"تحت المعدل",null,{"$f":"COUNTIF(I7:I36,\"<10\")","v":10},null,"معدل القسم",{"$f":"AVERAGE(I7:I36)","v":11.495000000000003}]
[]
[]
[]
[]
[]
["ثانوية :الشهيد سعيداني أحمد",null,null,null,"الفصل الثاني",null,null,null,"الــــــــمادة : اللغة العربية وآدابها"]
["القســــــــــــــــم: 2ع.تج1",null,null,null,null,null,null,null,"الموسم الدراسى: 2019/2018"]
["الأستاذة : حـــــمان يمنى",null,null,null,null,null,null,null,"ولايــــــة : بشــــــار",null,null,null,null,"أنشطـــــــة التقويــــــــم"]
["القـــــــــــــــــــــــــائمة الاسمية للتلاميـــــــــــــــــــــــــــــــــــذ"]
[]
["الرقم","الاسم  و اللقب",null,"م.المستمرة","تط/شفهي","معدل الفروض ","الاختبار","الاختبار*2","المعدل","م.المعامل","الملاحظة",null,null,"تعبير كتابي","واجب منزلي","مشروع"]
[1,"المير عبد الودود",null,null,null,null,null,{"$f":"G51*2","v":0},{"$f":"(H51+F51+E51+D51)/5","v":0},{"$f":"I51*2","v":0},{"$f":"IF(I51>=18,\"نتائج ممتازة\",IF(I51>=14,\"نتائج جيدة جدا\",IF(I51>=12,\" نتائج جد حسنة\",IF(I51>=10,\"نتائج متوسطة\",IF(I51>=7,\"نتائج ضعيفة\",\"نتائج ضعيفة جدا\")))))","v":"نتائج ضعيفة جدا"}]
[{"$f":"A51+1","v":2},"بلجنة صفاء",null,null,null,null,null,{"$f":"G52*2","v":0},{"$f":"(H52+F52+E52+D52)/5","v":0},{"$f":"I52*2","v":0},"نتائج ضعيفة جدا"]
[{"$f":"A52+1","v":3},"بلغول محمد ياسر",null,null,null,null,null,0,0,0,"نتائج ضعيفة جدا"]
[{"$f":"A53+1","v":4},"بن تونسي شيماء",null,null,null,null,null,0,0,0,"نتائج ضعيفة جدا"]
[5,"بن جيمة محمد",null,null,null,null,null,0,0,0,"نتائج ضعيفة جدا"]
[6,"بن شكشك أسماء",null,null,null,null,null,0,0,0,"نتائج ضعيفة جدا"]
[7,"بن عيسى إكرام",null,null,null,null,null,0,0,0,"نتائج ضعيفة جدا"]
[{"$f":"A57+1","v":8},"بن عيسى صلاح الدين",null,null,null,null,null,0,0,0,"نتائج ضعيفة جدا"]
[9,"بن كادي عبد الله",null,null,null,null,null,0,0,0,"نتائج ضعيفة جدا"]
[10,"بوسيف رشا",null,null,null,null,null,0,0,0,"نتائج ضعيفة جدا"]
[11,"بوشة أسامة علاء الدين",null,null,null,null,null,0,0,0,"نتائج ضعيفة جدا"]
[12,"بوقنينة مباركة",null,null,null,null,null,0,0,0,"نتائج ضعيفة جدا"]
[13,"تاج الدين صفاء فاطمة الزهراء",null,null,null,null,null,0,0,0,"نتائج ضعيفة جدا"]
[14,"تومي مريم",null,null,null,null,null,0,0,0,"نتائج ضعيفة جدا"]
[15,"حنافي رباب",null,null,null,null,null,0,0,0,"نتائج ضعيفة جدا"]
[16,"ديبة الزانة",null,null,null,null,null,0,0,0,"نتائج ضعيفة جدا"]
[17,"سليمي بشرى هبة الله",null,null,null,null,null,0,0,0,"نتائج ضعيفة جدا"]
[18,"شقرون حميدة فريال",null,null,null,null,null,0,0,0,"نتائج ضعيفة جدا"]
[19,"صديقي أسماء",null,null,null,null,null,0,0,0,"نتائج ضعيفة جدا"]
[20,"عباش بشرى",null,null,null,null,null,0,0,0,"نتائج ضعيفة جدا"]
[21,"عروسي فاطنة شيماء",null,null,null,null,null,0,0,0,"نتائج ضعيفة جدا"]
[22,"عفوس سندس",null,null,null,null,null,0,0,0,"نتائج ضعيفة جدا"]
[23,"قايل خولة",null,null,null,null,null,0,0,0,"نتائج ضعيفة جدا"]
[24,"قلاوي إلياس",null,null,null,null,null,0,0,0,"نتائج ضعيفة جدا"]
[25,"مجري صبرينة رشا",null,null,null,null,null,0,0,0,"نتائج ضعيفة جدا"]
[26,"محجوب أسماء",null,null,null,null,null,0,0,0,"نتائج ضعيفة جدا"]
[27,"مشري عبد الرحمان",null,null,null,null,null,0,0,0,"نتائج ضعيفة جدا"]
[28,"منصور حياة",null,null,null,null,null,0,0,0,"نتائج ضعيفة جدا"]
[29,"منصوري بوتخيل",null,null,null,null,null,0,0,0,"نتائج ضعيفة جدا"]
[30,"يوسفي هاجر",null,null,null,null,null,0,0,0,"نتائج ضعيفة جدا"]
[]
[]
[null,"فوق المعدل",null,{"$f":"COUNTIF(I51:I80,\">=10\")","v":0},null,"تحت المعدل",null,{"$f":"COUNTIF(I51:I80,\"<10\")","v":30},null,"معدل القسم",{"$f":"AVERAGE(I51:I80)","v":0}]
[]
[]
[]
[]
[]
["ثانوية :الشهيد سعيداني أحمد",null,null,null,"الفصل الثالث",null,null,null,"الــــــــمادة : اللغة العربية وآدابها"]
["القســــــــــــــــم: 2ع.تج1",null,null,null,null,null,null,null,"الموسم الدراسى: 2019/2018"]
["الأستاذة : حـــــمان يمنى",null,null,null,null,null,null,null,"ولايــــــة : بشــــــار",null,null,null,null,"أنشطـــــــة التقويــــــــم"]
["القـــــــــــــــــــــــــائمة الاسمية للتلاميـــــــــــــــــــــــــــــــــــذ"]
[]
["الرقم","الاسم  و اللقب",null,"م.المستمرة","تط/شفهي","معدل الفروض ","الاختبار","الاختبار*2","المعدل","م.المعامل","الملاحظة",null,null,"تعبير كتابي","واجب منزلي","مشروع"]
[1,"المير عبد الودود",null,null,null,null,null,{"$f":"G95*2","v":0},{"$f":"(H95+F95+E95+D95)/5","v":0},{"$f":"I95*2","v":0},{"$f":"IF(I95>=18,\"نتائج ممتازة\",IF(I95>=14,\"نتائج جيدة جدا\",IF(I95>=12,\" نتائج جد حسنة\",IF(I95>=10,\"نتائج متوسطة\",IF(I95>=7,\"نتائج ضعيفة\",\"نتائج ضعيفة جدا\")))))","v":"نتائج ضعيفة جدا"}]
[{"$f":"A95+1","v":2},"بلجنة صفاء",null,null,null,null,null,{"$f":"G96*2","v":0},{"$f":"(H96+F96+E96+D96)/5","v":0},{"$f":"I96*2","v":0},"نتائج ضعيفة جدا"]
[{"$f":"A96+1","v":3},"بلغول محمد ياسر",null,null,null,null,null,0,0,0,"نتائج ضعيفة جدا"]
[{"$f":"A97+1","v":4},"بن تونسي شيماء",null,null,null,null,null,0,0,0,"نتائج ضعيفة جدا"]
[5,"بن جيمة محمد",null,null,null,null,null,0,0,0,"نتائج ضعيفة جدا"]
[6,"بن شكشك أسماء",null,null,null,null,null,0,0,0,"نتائج ضعيفة جدا"]
[7,"بن عيسى إكرام",null,null,null,null,null,0,0,0,"نتائج ضعيفة جدا"]
[{"$f":"A101+1","v":8},"بن عيسى صلاح الدين",null,null,null,null,null,0,0,0,"نتائج ضعيفة جدا"]
[9,"بن كادي عبد الله",null,null,null,null,null,0,0,0,"نتائج ضعيفة جدا"]
[10,"بوسيف رشا",null,null,null,null,null,0,0,0,"نتائج ضعيفة جدا"]
[11,"بوشة أسامة علاء الدين",null,null,null,null,null,0,0,0,"نتائج ضعيفة جدا"]
[12,"بوقنينة مباركة",null,null,null,null,null,0,0,0,"نتائج ضعيفة جدا"]
[13,"تاج الدين صفاء فاطمة الزهراء",null,null,null,null,null,0,0,0,"نتائج ضعيفة جدا"]
[14,"تومي مريم",null,null,null,null,null,0,0,0,"نتائج ضعيفة جدا"]
[15,"حنافي رباب",null,null,null,null,null,0,0,0,"نتائج ضعيفة جدا"]
[16,"ديبة الزانة",null,null,null,null,null,0,0,0,"نتائج ضعيفة جدا"]
[17,"سليمي بشرى هبة الله",null,null,null,null,null,0,0,0,"نتائج ضعيفة جدا"]
[18,"شقرون حميدة فريال",null,null,null,null,null,0,0,0,"نتائج ضعيفة جدا"]
[19,"صديقي أسماء",null,null,null,null,null,0,0,0,"نتائج ضعيفة جدا"]
[20,"عباش بشرى",null,null,null,null,null,0,0,0,"نتائج ضعيفة جدا"]
[21,"عروسي فاطنة شيماء",null,null,null,null,null,0,0,0,"نتائج ضعيفة جدا"]
[22,"عفوس سندس",null,null,null,null,null,0,0,0,"نتائج ضعيفة جدا"]
[23,"قايل خولة",null,null,null,null,null,0,0,0,"نتائج ضعيفة جدا"]
[24,"قلاوي إلياس",null,null,null,null,null,0,0,0,"نتائج ضعيفة جدا"]
[25,"مجري صبرينة رشا",null,null,null,null,null,0,0,0,"نتائج ضعيفة جدا"]
[26,"محجوب أسماء",null,null,null,null,null,0,0,0,"نتائج ضعيفة جدا"]
[27,"مشري عبد الرحمان",null,null,null,null,null,0,0,0,"نتائج ضعيفة جدا"]
[28,"منصور حياة",null,null,null,null,null,0,0,0,"نتائج ضعيفة جدا"]
[29,"منصوري بوتخيل",null,null,null,null,null,0,0,0,"نتائج ضعيفة جدا"]
[30,"يوسفي هاجر",null,null,null,null,null,0,0,0,"نتائج ضعيفة جدا"]
[]
[]
[null,"فوق المعدل",null,{"$f":"COUNTIF(I95:I124,\">=10\")","v":0},null,"تحت المعدل",null,{"$f":"COUNTIF(I95:I124,\"<10\")","v":30},null,"معدل القسم",{"$f":"AVERAGE(I95:I124)","v":0}]

{"sheet":"2علوم تجريبية2","index":2,"n_rows":133,"n_cols":47,"rows_kept":133,"cut":false,"hidden":false,"merged":[[24,1,24,2],[26,1,26,2],[27,1,27,2],[0,0,0,3],[0,4,2,7],[0,8,0,10],[1,0,1,3],[1,8,1,10],[2,0,2,3],[2,8,2,10],[6,1,6,2],[8,1,8,2],[3,0,4,10],[5,1,5,2],[5,10,5,11],[7,1,7,2],[1,17,1,20],[1,25,1,28],[2,17,2,20],[2,25,2,28],[32,1,32,2],[36,1,36,2],[37,1,37,2],[33,1,33,2],[13,18,13,19],[14,18,14,19],[15,18,15,19],[16,18,16,19],[17,18,17,19],[8,18,8,19],[9,18,9,19],[10,18,10,19],[11,18,11,19],[12,18,12,19],[23,18,23,19],[24,18,24,19],[25,18,25,19],[26,18,26,19],[27,18,27,19],[18,18,18,19],[40,1,40,2],[40,5,40,6],[35,1,35,2],[19,1,19,2],[9,1,9,2],[10,1,10,2],[16,1,16,2],[17,1,17,2],[18,1,18,2],[15,1,15,2],[11,1,11,2],[12,1,12,2],[13,1,13,2],[14,1,14,2],[30,1,30,2],[38,0,39,10],[31,1,31,2],[20,1,20,2],[21,1,21,2],[25,1,25,2],[28,1,28,2],[29,1,29,2],[22,1,22,2],[23,1,23,2],[19,18,19,19],[20,18,20,19],[21,18,21,19],[22,18,22,19],[33,18,33,19],[35,18,35,19],[36,18,36,19],[37,18,37,19],[40,18,40,19],[28,18,28,19],[29,18,29,19],[30,18,30,19],[31,18,31,19],[32,18,32,19],[40,22,40,23],[40,26,40,27],[0,35,0,38],[6,36,6,37],[7,36,7,37],[8,36,8,37],[9,36,9,37],[3,17,4,28],[5,18,5,19],[5,28,5,29],[6,18,6,19],[7,18,7,19],[0,17,0,20],[0,21,2,24],[0,25,0,28],[15,36,15,37],[16,36,16,37],[17,36,17,37],[18,36,18,37],[19,36,19,37],[10,36,10,37],[11,36,11,37],[12,36,12,37],[13,36,13,37],[0,39,2,42],[0,43,0,46],[1,35,1,38],[1,43,1,46],[2,35,2,38],[2,43,2,46],[3,35,4,46],[5,36,5,37],[5,46,5,47],[14,36,14,37],[25,36,25,37],[26,36,26,37],[27,36,27,37],[28,36,28,37],[29,36,29,37],[20,36,20,37],[21,36,21,37],[22,36,22,37],[23,36,23,37],[24,36,24,37],[36,36,36,37],[37,36,37,37],[40,36,40,37],[40,40,40,41],[40,44,40,45],[30,36,30,37],[31,36,31,37],[32,36,32,37],[33,36,33,37],[35,36,35,37],[46,0,46,3],[46,4,48,7],[46,8,46,10],[47,0,47,3],[47,8,47,10],[48,0,48,3],[48,8,48,10],[49,0,50,10],[51,1,51,2],[51,10,51,11],[52,1,52,2],[53,1,53,2],[54,1,54,2],[55,1,55,2],[56,1,56,2],[57,1,57,2],[58,1,58,2],[59,1,59,2],[60,1,60,2],[61,1,61,2],[62,1,62,2],[63,1,63,2],[64,1,64,2],[65,1,65,2],[66,1,66,2],[67,1,67,2],[68,1,68,2],[69,1,69,2],[70,1,70,2],[71,1,71,2],[72,1,72,2],[73,1,73,2],[74,1,74,2],[75,1,75,2],[76,1,76,2],[77,1,77,2],[78,1,78,2],[79,1,79,2],[81,1,81,2],[82,1,82,2],[83,1,83,2],[84,0,85,10],[86,1,86,2],[86,5,86,6],[104,1,104,2],[105,1,105,2],[106,1,106,2],[92,0,92,3],[92,4,94,7],[92,8,92,10],[93,0,93,3],[93,8,93,10],[94,0,94,3],[94,8,94,10],[95,0,96,10],[97,1,97,2],[97,10,97,11],[129,1,129,2],[130,0,131,10],[132,1,132,2],[132,5,132,6],[116,1,116,2],[117,1,117,2],[118,1,118,2],[119,1,119,2],[120,1,120,2],[121,1,121,2],[122,1,122,2],[123,1,123,2],[124,1,124,2],[2,13,3,15],[4,13,4,15],[48,13,49,15],[50,13,50,15],[94,13,95,15],[96,13,96,15],[125,1,125,2],[127,1,127,2],[128,1,128,2],[107,1,107,2],[108,1,108,2],[109,1,109,2],[110,1,110,2],[111,1,111,2],[112,1,112,2],[113,1,113,2],[114,1,114,2],[115,1,115,2],[98,1,98,2],[99,1,99,2],[100,1,100,2],[101,1,101,2],[102,1,102,2],[103,1,103,2]]}
["ثانوية :الشهيد سعيداني أحمد",null,null,null,"الفصل الاول",null,null,null,"الــــــــمادة : آداب وفلســــــفة",null,null,null,null,null,null,null,null,"ثانوية :الشهيد سعيداني أحمد",null,null,null,"الفصل الثاني",null,null,null,"الــــــــمادة : آداب وفلســــــفة",null,null,null,null,null,null,null,null,null,"ثانوية :الشهيد سعيداني أحمد",null,null,null,"الفصل الثالث",null,null,null,"الــــــــمادة : آداب وفلســــــفة"]
["القســــــــــــــــم: 2ع.تج2",null,null,null,null,null,null,null,"الموسم الدراسى: 2019/2018",null,null,null,null,null,null,null,null,"القســــــــــــــــم: 2ع.تج2",null,null,null,null,null,null,null,"الموسم الدراسى: 2019/2018",null,null,null,null,null,null,null,null,null,"القســــــــــــــــم: 2ع.تج2",null,null,null,null,null,null,null,"الموسم الدراسى: 2019/2018"]
["الأستاذة : حـــــمان يمنى",null,null,null,null,null,null,null,"ولايــــــة : بشــــــار",null,null,null,null,"أنشطـــــــة التقويــــــــم",null,null,null,"الأستاذة : حـــــمان يمنى",null,null,null,null,null,null,null,"ولايــــــة : بشــــــار",null,null,null,null,null,null,null,null,null,"الأستاذة : حـــــمان يمنى",null,null,null,null,null,null,null,"ولايــــــة : بشــــــار"]
["القـــــــــــــــــــــــــائمة الاسمية للتلاميـــــــــــــــــــــــــــــــــــذ",null,null,null,null,null,null,null,null,null,null,null,null,null,null,null,null,"القـــــــــــــــــــــــــائمة الاسمية للتلاميـــــــــــــــــــــــــــــــــــذ",null,null,null,null,null,null,null,null,null,null,null,null,null,null,null,null,null,"القـــــــــــــــــــــــــائمة الاسمية للتلاميـــــــــــــــــــــــــــــــــــذ"]
[]
["الرقم","الاسم  و اللقب",null,"م.المستمرة","تط/شفهي","معدل الفروض ","الاختبار","الاختبار*2","المعدل","م.المعامل","الملاحظة",null,null,"تعبير كتابي","واجب منزلي","مشروع",null,"الرقم","الاسم  و اللقب",null,"م.المستمرة","تط/شفهي","معدل الفروض ","الاختبار","الاختبار*2","المعدل","المعامل","المجموع","الملاحظة",null,null,null,null,null,null,"الرقم","الاسم  و اللقب",null,"م.المستمرة","تط/شفهي","معدل الفروض ","الاختبار","الاختبار*2","المعدل","المعامل","المجموع","الملاحظة"]
[1,"أولا نصير رياض","أولا نصير رياض","13.00","12.00","06.00","10.00",{"$f":"G7*2","v":20},{"$f":"(H7+F7+E7+D7)/5","v":10.199999999999999},{"$f":"I7*2","v":20.399999999999999},{"$f":"IF(I7>=18,\"نتائج ممتازة\",IF(I7>=14,\"نتائج جيدة جدا\",IF(I7>=12,\" نتائج جد حسنة\",IF(I7>=10,\"نتائج متوسطة\",IF(I7>=7,\"نتائج ضعيفة\",\"نتائج ضعيفة جدا\")))))","v":"نتائج متوسطة"},null,null,null,null,null,null,1,"أولا نصير رياض","أولا نصير رياض",null,null,null,null,{"$f":"X7*2","v":0},{"$f":"(Y7+W7)/3","v":0},3,{"$f":"Z7*AA7","v":0},{"$f":"IF(Z7>=18,\"نتائج ممتازة\",IF(Z7>=14,\"نتائج جيدة جدا\",IF(Z7>=12,\" نتائج جد حسنة\",IF(Z7>=10,\"نتائج متوسطة\",IF(Z7>=7,\"نتائج ضعيفة\",\"نتائج ضعيفة جدا\")))))","v":"نتائج ضعيفة جدا"},null,null,null,null,null,null,1,"أولا نصير رياض","أولا نصير رياض",null,null,null,null,{"$f":"AP7*2","v":0},{"$f":"(AQ7+AO7)/3","v":0},3,{"$f":"AR7*AS7","v":0},{"$f":"IF(AR7>=18,\"نتائج ممتازة\",IF(AR7>=14,\"نتائج جيدة جدا\",IF(AR7>=12,\" نتائج جد حسنة\",IF(AR7>=10,\"نتائج متوسطة\",IF(AR7>=7,\"نتائج ضعيفة\",\"نتائج ضعيفة جدا\")))))","v":"نتائج ضعيفة جدا"}]
[{"$f":"A7+1","v":2},"بركات بشرى","بركات بشرى","15.00","14.00","12.00","15.75",{"$f":"G8*2","v":31.5},{"$f":"(H8+F8+E8+D8)/5","v":14.5},{"$f":"I8*2","v":29},"نتائج جيدة جدا",null,null,null,null,null,null,{"$f":"R7+1","v":2},"بركات بشرى","بركات بشرى",null,null,null,null,{"$f":"X8*2","v":0},{"$f":"(Y8+W8)/3","v":0},3,{"$f":"Z8*AA8","v":0},"نتائج ضعيفة جدا",null,null,null,null,null,null,{"$f":"AJ7+1","v":2},"بركات بشرى","بركات بشرى",null,null,null,null,{"$f":"AP8*2","v":0},{"$f":"(AQ8+AO8)/3","v":0},3,{"$f":"AR8*AS8","v":0},"نتائج ضعيفة جدا"]
[{"$f":"A8+1","v":3},"بقوق نجيب","بقوق نجيب","12.00","13.00","03.25","07.75",15.5,8.75,17.5,"نتائج ضعيفة",null,null,null,null,null,null,{"$f":"R8+1","v":3},"بقوق نجيب","بقوق نجيب",null,null,null,null,0,0,3,0,"نتائج ضعيفة جدا",null,null,null,null,null,null,{"$f":"AJ8+1","v":3},"بقوق نجيب","بقوق نجيب",null,null,null,null,0,0,3,0,"نتائج ضعيفة جدا"]
[{"$f":"A9+1","v":4},"بلعيد ايمان","بلعيد ايمان","14.00","13.00","09.75","11.50",23,11.95,23.9,"نتائج متوسطة",null,null,null,null,null,null,{"$f":"R9+1","v":4},"بلعيد ايمان","بلعيد ايمان",null,null,null,null,0,0,3,0,"نتائج ضعيفة جدا",null,null,null,null,null,null,{"$f":"AJ9+1","v":4},"بلعيد ايمان","بلعيد ايمان",null,null,null,null,0,0,3,0,"نتائج ضعيفة جدا"]
[5,"بن خادر خالد","بن خادر خالد","12.00","12.50","11.75","07.25",14.5,10.15,20.3,"نتائج متوسطة",null,null,null,null,null,null,5,"بن خادر خالد","بن خادر خالد",null,null,null,null,0,0,3,0,"نتائج ضعيفة جدا",null,null,null,null,null,null,5,"بن خادر خالد","بن خادر خالد",null,null,null,null,0,0,3,0,"نتائج ضعيفة جدا"]
[6,"بن دادة محمد اكرم","بن دادة محمد اكرم","15.00","13.00","15.50","11.25",22.5,13.2,26.4," نتائج جد حسنة",null,null,null,null,null,null,6,"بن دادة محمد اكرم","بن دادة محمد اكرم",null,null,null,null,0,0,3,0,"نتائج ضعيفة جدا",null,null,null,null,null,null,6,"بن دادة محمد اكرم","بن دادة محمد اكرم",null,null,null,null,0,0,3,0,"نتائج ضعيفة جدا"]
[7,"بن صابرو محمد","بن صابرو محمد","14.50","12.50","14.25","09.50",19,12.05,24.1," نتائج جد حسنة",null,null,null,null,null,null,7,"بن صابرو محمد","بن صابرو محمد",null,null,null,null,0,0,3,0,"نتائج ضعيفة جدا",null,null,null,null,null,null,7,"بن صابرو محمد","بن صابرو محمد",null,null,null,null,0,0,3,0,"نتائج ضعيفة جدا"]
[{"$f":"A13+1","v":8},"بن عامر أسامة","بن عامر أسامة","11.00","11.50","06.25","10.00",20,9.75,19.5,"نتائج ضعيفة",null,null,null,null,null,null,{"$f":"R13+1","v":8},"بن عامر أسامة","بن عامر أسامة",null,null,null,null,0,0,3,0,"نتائج ضعيفة جدا",null,null,null,null,null,null,{"$f":"AJ13+1","v":8},"بن عامر أسامة","بن عامر أسامة",null,null,null,null,0,0,3,0,"نتائج ضعيفة جدا"]
[9,"بن مجاهد هند","بن مجاهد هند","15.50","13.00","15.00","12.50",25,13.7,27.4," نتائج جد حسنة",null,null,null,null,null,null,9,"بن مجاهد هند","بن مجاهد هند",null,null,null,null,0,0,3,0,"نتائج ضعيفة جدا",null,null,null,null,null,null,9,"بن مجاهد هند","بن مجاهد هند",null,null,null,null,0,0,3,0,"نتائج ضعيفة جدا"]
[10,"بن معطي الحاج محمد","بن معطي الحاج محمد","13.00","12.00","08.25","10.00",20,10.65,21.3,"نتائج متوسطة",null,null,null,null,null,null,10,"بن معطي الحاج محمد","بن معطي الحاج محمد",null,null,null,null,0,0,3,0,"نتائج ضعيفة جدا",null,null,null,null,null,null,10,"بن معطي الحاج محمد","بن معطي الحاج محمد",null,null,null,null,0,0,3,0,"نتائج ضعيفة جدا"]
[11,"بوشيخي أحمد","بوشيخي أحمد","06.00","06.00","03.00","03.00",6,4.2,8.4,"نتائج ضعيفة جدا",null,null,null,null,null,null,11,"بوشيخي أحمد","بوشيخي أحمد",null,null,null,null,0,0,3,0,"نتائج ضعيفة جدا",null,null,null,null,null,null,11,"بوشيخي أحمد","بوشيخي أحمد",null,null,null,null,0,0,3,0,"نتائج ضعيفة جدا"]
[12,"تارقي عبد الفتاح","تارقي عبد الفتاح","16.00","14.00","15.50","11.00",22,13.5,27," نتائج جد حسنة",null,null,null,null,null,null,12,"تارقي عبد الفتاح","تارقي عبد الفتاح",null,null,null,null,0,0,3,0,"نتائج ضعيفة جدا",null,null,null,null,null,null,12,"تارقي عبد الفتاح","تارقي عبد الفتاح",null,null,null,null,0,0,3,0,"نتائج ضعيفة جدا"]
[13,"توجي ندى شرين سهام  1","توجي ندى شرين سهام  1","15.00","14.00","09.75","08.25",16.5,11.05,22.1,"نتائج متوسطة",null,null,null,null,null,null,13,"توجي ندى شرين سهام  1","توجي ندى شرين سهام  1",null,null,null,null,0,0,3,0,"نتائج ضعيفة جدا",null,null,null,null,null,null,13,"توجي ندى شرين سهام  1","توجي ندى شرين سهام  1",null,null,null,null,0,0,3,0,"نتائج ضعيفة جدا"]
[14,"جطني عادل","جطني عادل","13.00","12.00","11.75","10.00",20,11.35,22.7,"نتائج متوسطة",null,null,null,null,null,null,14,"جطني عادل","جطني عادل",null,null,null,null,0,0,3,0,"نتائج ضعيفة جدا",null,null,null,null,null,null,14,"جطني عادل","جطني عادل",null,null,null,null,0,0,3,0,"نتائج ضعيفة جدا"]
[15,"جلمودي آدم","جلمودي آدم","11.00","14.00","09.75","08.50",17,10.35,20.7,"نتائج متوسطة",null,null,null,null,null,null,15,"جلمودي آدم","جلمودي آدم",null,null,null,null,0,0,3,0,"نتائج ضعيفة جدا",null,null,null,null,null,null,15,"جلمودي آدم","جلمودي آدم",null,null,null,null,0,0,3,0,"نتائج ضعيفة جدا"]
[16,"حكومي حنان","حكومي حنان","12.50","13.00","07.00","07.00",14,9.3000000000000007,18.600000000000001,"نتائج ضعيفة",null,null,null,null,null,null,16,"حكومي حنان","حكومي حنان",null,null,null,null,0,0,3,0,"نتائج ضعيفة جدا",null,null,null,null,null,null,16,"حكومي حنان","حكومي حنان",null,null,null,null,0,0,3,0,"نتائج ضعيفة جدا"]
[17,"حواص محمد عماد الدين","حواص محمد عماد الدين","15.00","14.00","10.25","10.75",21.5,12.15,24.3," نتائج جد حسنة",null,null,null,null,null,null,17,"حواص محمد عماد الدين","حواص محمد عماد الدين",null,null,null,null,0,0,3,0,"نتائج ضعيفة جدا",null,null,null,null,null,null,17,"حواص محمد عماد الدين","حواص محمد عماد الدين",null,null,null,null,0,0,3,0,"نتائج ضعيفة جدا"]
[18,"خادر فيصل","خادر فيصل","14.00","14.00","07.75","10.00",20,11.15,22.3,"نتائج متوسطة",null,null,null,null,null,null,18,"خادر فيصل","خادر فيصل",null,null,null,null,0,0,3,0,"نتائج ضعيفة جدا",null,null,null,null,null,null,18,"خادر فيصل","خادر فيصل",null,null,null,null,0,0,3,0,"نتائج ضعيفة جدا"]
[19,"خليف فتحي","خليف فتحي","12.00","12.50","06.75","09.25",18.5,9.9499999999999993,19.899999999999999,"نتائج ضعيفة",null,null,null,null,null,null,19,"خليف فتحي","خليف فتحي",null,null,null,null,0,0,3,0,"نتائج ضعيفة جدا",null,null,null,null,null,null,19,"خليف فتحي","خليف فتحي",null,null,null,null,0,0,3,0,"نتائج ضعيفة جدا"]
[20,"دحماني محمد عبد الغاني","دحماني محمد عبد الغاني","13.00","11.00","12.00","10.25",20.5,11.3,22.6,"نتائج متوسطة",null,null,null,null,null,null,20,"دحماني محمد عبد الغاني","دحماني محمد عبد الغاني",null,null,null,null,0,0,3,0,"نتائج ضعيفة جدا",null,null,null,null,null,null,20,"دحماني محمد عبد الغاني","دحماني محمد عبد الغاني",null,null,null,null,0,0,3,0,"نتائج ضعيفة جدا"]
[21,"زايد شيماء","زايد شيماء","14.00","12.00","12.00","09.50",19,11.4,22.8,"نتائج متوسطة",null,null,null,null,null,null,21,"زايد شيماء","زايد شيماء",null,null,null,null,0,0,3,0,"نتائج ضعيفة جدا",null,null,null,null,null,null,21,"زايد شيماء","زايد شيماء",null,null,null,null,0,0,3,0,"نتائج ضعيفة جدا"]
[22,"زكاري اسمهان","زكاري اسمهان","13.00","14.00","07.25","08.25",16.5,10.15,20.3,"نتائج متوسطة",null,null,null,null,null,null,22,"زكاري اسمهان","زكاري اسمهان",null,null,null,null,0,0,3,0,"نتائج ضعيفة جدا",null,null,null,null,null,null,22,"زكاري اسمهان","زكاري اسمهان",null,null,null,null,0,0,3,0,"نتائج ضعيفة جدا"]
[23,"سيرات فؤاد","سيرات فؤاد","13.50","12.50","13.25","11.00",22,12.25,24.5," نتائج جد حسنة",null,null,null,null,null,null,23,"سيرات فؤاد","سيرات فؤاد",null,null,null,null,0,0,3,0,"نتائج ضعيفة جدا",null,null,null,null,null,null,23,"سيرات فؤاد","سيرات فؤاد",null,null,null,null,0,0,3,0,"نتائج ضعيفة جدا"]
[24,"شيحة خولة","شيحة خولة","13.00","11.00","12.25","09.25",18.5,10.95,21.9,"نتائج متوسطة",null,null,null,null,null,null,24,"شيحة خولة","شيحة خولة",null,null,null,null,0,0,3,0,"نتائج ضعيفة جدا",null,null,null,null,null,null,24,"شيحة خولة","شيحة خولة",null,null,null,null,0,0,3,0,"نتائج ضعيفة جدا"]
[25,"صباح دلال","صباح دلال","11.50","12.00","08.25","04.50",9,8.15,16.3,"نتائج ضعيفة",null,null,null,null,null,null,25,"صباح دلال","صباح دلال",null,null,null,null,0,0,3,0,"نتائج ضعيفة جدا",null,null,null,null,null,null,25,"صباح دلال","صباح دلال",null,null,null,null,0,0,3,0,"نتائج ضعيفة جدا"]
[26,"عبيد حياة","عبيد حياة","15.00","13.50","13.50","10.50",21,12.6,25.2," نتائج جد حسنة",null,null,null,null,null,null,26,"عبيد حياة","عبيد حياة",null,null,null,null,0,0,3,0,"نتائج ضعيفة جدا",null,null,null,null,null,null,26,"عبيد حياة","عبيد حياة",null,null,null,null,0,0,3,0,"نتائج ضعيفة جدا"]
[27,"قاسمي رحمة","قاسمي رحمة","15.00","12.50","09.75","13.00",26,12.65,25.3," نتائج جد حسنة",null,null,null,null,null,null,27,"قاسمي رحمة","قاسمي رحمة",null,null,null,null,0,0,3,0,"نتائج ضعيفة جدا",null,null,null,null,null,null,27,"قاسمي رحمة","قاسمي رحمة",null,null,null,null,0,0,3,0,"نتائج ضعيفة جدا"]
[28,"قدير انفال",null,"15.00","11.50","13.50","11.50",23,12.6,25.2," نتائج جد حسنة",null,null,null,null,null,null,28,"قدير انفال",null,null,null,null,null,0,0,3,0,"نتائج ضعيفة جدا",null,null,null,null,null,null,28,"قدير انفال",null,null,null,null,null,0,0,3,0,"نتائج ضعيفة جدا"]
[29,"لغزال عبد المجيد",null,"11.50","11.00","08.75","11.25",22.5,10.75,21.5,"نتائج متوسطة",null,null,null,null,null,null,29,"لغزال عبد المجيد",null,null,null,null,null,0,0,3,0,"نتائج ضعيفة جدا",null,null,null,null,null,null,29,"لغزال عبد المجيد",null,null,null,null,null,0,0,3,0,"نتائج ضعيفة جدا"]
[{"$f":"A35+1","v":30},"محجوب عبد الجليل","محجوب عبد الجليل","13.00","11.00","12.50","05.00",10,9.3000000000000007,18.600000000000001,"نتائج ضعيفة",null,null,null,null,null,null,{"$f":"R35+1","v":30},"محجوب عبد الجليل","محجوب عبد الجليل",null,null,null,null,0,0,3,0,"نتائج ضعيفة جدا",null,null,null,null,null,null,{"$f":"AJ35+1","v":30},"محجوب عبد الجليل","محجوب عبد الجليل",null,null,null,null,0,0,3,0,"نتائج ضعيفة جدا"]
[31,"معراج أمينة",null,"15.00","12.00","16.00","14.00",28,14.2,28.4,"نتائج جيدة جدا",null,null,null,null,null,null,31,"معراج أمينة",null,null,null,null,null,0,0,3,0,"نتائج ضعيفة جدا",null,null,null,null,null,null,31,"معراج أمينة",null,null,null,null,null,0,0,3,0,"نتائج ضعيفة جدا"]
[32,"معمري نورية",null,15,12,7,"09.00",18,10.4,20.8,"نتائج متوسطة",null,null,null,null,null,null,32,"معمري نورية",null,null,null,null,null,0,0,3,0,"نتائج ضعيفة جدا",null,null,null,null,null,null,32,"معمري نورية",null,null,null,null,null,0,0,3,0,"نتائج ضعيفة جدا"]
[]
[]
[null,"فوق المعدل",null,{"$f":"COUNTIF(I7:I38,\">=10\")","v":25},null,"تحت المعدل",null,{"$f":"COUNTIF(I7:I38,\"<10\")","v":7},null,"معدل القسم",{"$f":"AVERAGE(I7:I38)","v":11.081250000000001},null,null,null,null,null,null,null,"فوق المعدل",null,{"$f":"COUNTIF(Z7:Z36,\">=10\")","v":0},null,"تحت المعدل",null,{"$f":"COUNTIF(Z7:Z39,\"<10\")","v":32},null,"معدل القسم",null,{"$f":"AVERAGE(Z7:Z38)","v":0},null,null,null,null,null,null,null,"فوق المعدل",null,{"$f":"COUNTIF(AR7:AR36,\">=10\")","v":0},null,"تحت المعدل",null,{"$f":"COUNTIF(AR7:AR39,\"<10\")","v":32},null,"معدل القسم",null,{"$f":"AVERAGE(AR7:AR38)","v":0}]
[]
[]
[]
[]
[]
["ثانوية :الشهيد سعيداني أحمد",null,null,null,"الفصل الثاني",null,null,null,"الــــــــمادة : آداب وفلســــــفة"]
["القســــــــــــــــم: 2ع.تج2",null,null,null,null,null,null,null,"الموسم الدراسى: 2019/2018"]
["الأستاذة : حـــــمان يمنى",null,null,null,null,null,null,null,"ولايــــــة : بشــــــار",null,null,null,null,"أنشطـــــــة التقويــــــــم"]
["القـــــــــــــــــــــــــائمة الاسمية للتلاميـــــــــــــــــــــــــــــــــــذ"]
[]
["الرقم","الاسم  و اللقب",null,"م.المستمرة","تط/شفهي","معدل الفروض ","الاختبار","الاختبار*2","المعدل","م.المعامل","الملاحظة",null,null,"تعبير كتابي","واجب منزلي","مشروع"]
[1,"أولا نصير رياض","أولا نصير رياض",null,null,null,null,{"$f":"G53*2","v":0},{"$f":"(H53+F53+E53+D53)/5","v":0},{"$f":"I53*2","v":0},{"$f":"IF(I53>=18,\"نتائج ممتازة\",IF(I53>=14,\"نتائج جيدة جدا\",IF(I53>=12,\" نتائج جد حسنة\",IF(I53>=10,\"نتائج متوسطة\",IF(I53>=7,\"نتائج ضعيفة\",\"نتائج ضعيفة جدا\")))))","v":"نتائج ضعيفة جدا"}]
[{"$f":"A53+1","v":2},"بركات بشرى","بركات بشرى",null,null,null,null,{"$f":"G54*2","v":0},{"$f":"(H54+F54+E54+D54)/5","v":0},{"$f":"I54*2","v":0},"نتائج ضعيفة جدا"]
[{"$f":"A54+1","v":3},"بقوق نجيب","بقوق نجيب",null,null,null,null,0,0,0,"نتائج ضعيفة جدا"]
[{"$f":"A55+1","v":4},"بلعيد ايمان","بلعيد ايمان",null,null,null,null,0,0,0,"نتائج ضعيفة جدا"]
[5,"بن خادر خالد","بن خادر خالد",null,null,null,null,0,0,0,"نتائج ضعيفة جدا"]
[6,"بن دادة محمد اكرم","بن دادة محمد اكرم",null,null,null,null,0,0,0,"نتائج ضعيفة جدا"]
[7,"بن صابرو محمد","بن صابرو محمد",null,null,null,null,0,0,0,"نتائج ضعيفة جدا"]
[{"$f":"A59+1","v":8},"بن عامر أسامة","بن عامر أسامة",null,null,null,null,0,0,0,"نتائج ضعيفة جدا"]
[9,"بن مجاهد هند","بن مجاهد هند",null,null,null,null,0,0,0,"نتائج ضعيفة جدا"]
[10,"بن معطي الحاج محمد","بن معطي الحاج محمد",null,null,null,null,0,0,0,"نتائج ضعيفة جدا"]
[11,"بوشيخي أحمد","بوشيخي أحمد",null,null,null,null,0,0,0,"نتائج ضعيفة جدا"]
[12,"تارقي عبد الفتاح","تارقي عبد الفتاح",null,null,null,null,0,0,0,"نتائج ضعيفة جدا"]
[13,"توجي ندى شرين سهام  1","توجي ندى شرين سهام  1",null,null,null,null,0,0,0,"نتائج ضعيفة جدا"]
[14,"جطني عادل","جطني عادل",null,null,null,null,0,0,0,"نتائج ضعيفة جدا"]
[15,"جلمودي آدم","جلمودي آدم",null,null,null,null,0,0,0,"نتائج ضعيفة جدا"]
[16,"حكومي حنان","حكومي حنان",null,null,null,null,0,0,0,"نتائج ضعيفة جدا"]
[17,"حواص محمد عماد الدين","حواص محمد عماد الدين",null,null,null,null,0,0,0,"نتائج ضعيفة جدا"]
[18,"خادر فيصل","خادر فيصل",null,null,null,null,0,0,0,"نتائج ضعيفة جدا"]
[19,"خليف فتحي","خليف فتحي",null,null,null,null,0,0,0,"نتائج ضعيفة جدا"]
[20,"دحماني محمد عبد الغاني","دحماني محمد عبد الغاني",null,null,null,null,0,0,0,"نتائج ضعيفة جدا"]
[21,"زايد شيماء","زايد شيماء",null,null,null,null,0,0,0,"نتائج ضعيفة جدا"]
[22,"زكاري اسمهان","زكاري اسمهان",null,null,null,null,0,0,0,"نتائج ضعيفة جدا"]
[23,"سيرات فؤاد","سيرات فؤاد",null,null,null,null,0,0,0,"نتائج ضعيفة جدا"]
[24,"شيحة خولة","شيحة خولة",null,null,null,null,0,0,0,"نتائج ضعيفة جدا"]
[25,"صباح دلال","صباح دلال",null,null,null,null,0,0,0,"نتائج ضعيفة جدا"]
[26,"عبيد حياة","عبيد حياة",null,null,null,null,0,0,0,"نتائج ضعيفة جدا"]
[27,"قاسمي رحمة","قاسمي رحمة",null,null,null,null,0,0,0,"نتائج ضعيفة جدا"]
[28,"قدير انفال",null,null,null,null,null,0,0,0,"نتائج ضعيفة جدا"]
[29,"لغزال عبد المجيد",null,null,null,null,null,0,0,0,"نتائج ضعيفة جدا"]
[30,"محجوب عبد الجليل","محجوب عبد الجليل",null,null,null,null,0,0,0,"نتائج ضعيفة جدا"]
[31,"معراج أمينة",null,null,null,null,null,0,0,0,"نتائج ضعيفة جدا"]
[32,"معمري نورية",null,null,null,null,null,0,{"$f":"(H84+F84+E84+D84)/5","v":0},0,"نتائج ضعيفة جدا"]
[]
[]
[null,"فوق المعدل",null,{"$f":"COUNTIF(I53:I84,\">=10\")","v":0},null,"تحت المعدل",null,{"$f":"COUNTIF(I53:I84,\"<10\")","v":32},null,"معدل القسم",{"$f":"AVERAGE(I53:I84)","v":0}]
[]
[]
[]
[]
[]
["ثانوية :الشهيد سعيداني أحمد",null,null,null,"الفصل الثالث",null,null,null,"الــــــــمادة : آداب وفلســــــفة"]
["القســــــــــــــــم: 2ع.تج2",null,null,null,null,null,null,null,"الموسم الدراسى: 2019/2018"]
["الأستاذة : حـــــمان يمنى",null,null,null,null,null,null,null,"ولايــــــة : بشــــــار",null,null,null,null,"أنشطـــــــة التقويــــــــم"]
["القـــــــــــــــــــــــــائمة الاسمية للتلاميـــــــــــــــــــــــــــــــــــذ"]
[]
["الرقم","الاسم  و اللقب",null,"م.المستمرة","تط/شفهي","معدل الفروض ","الاختبار","الاختبار*2","المعدل","م.المعامل","الملاحظة",null,null,"تعبير كتابي","واجب منزلي","مشروع"]
[1,"أولا نصير رياض","أولا نصير رياض",null,null,null,null,{"$f":"G99*2","v":0},{"$f":"(H99+F99+E99+D99)/5","v":0},{"$f":"I99*2","v":0},{"$f":"IF(I99>=18,\"نتائج ممتازة\",IF(I99>=14,\"نتائج جيدة جدا\",IF(I99>=12,\" نتائج جد حسنة\",IF(I99>=10,\"نتائج متوسطة\",IF(I99>=7,\"نتائج ضعيفة\",\"نتائج ضعيفة جدا\")))))","v":"نتائج ضعيفة جدا"}]
[{"$f":"A99+1","v":2},"بركات بشرى","بركات بشرى",null,null,null,null,{"$f":"G100*2","v":0},{"$f":"(H100+F100+E100+D100)/5","v":0},{"$f":"I100*2","v":0},"نتائج ضعيفة جدا"]
[{"$f":"A100+1","v":3},"بقوق نجيب","بقوق نجيب",null,null,null,null,0,0,0,"نتائج ضعيفة جدا"]
[{"$f":"A101+1","v":4},"بلعيد ايمان","بلعيد ايمان",null,null,null,null,0,0,0,"نتائج ضعيفة جدا"]
[5,"بن خادر خالد","بن خادر خالد",null,null,null,null,0,0,0,"نتائج ضعيفة جدا"]
[6,"بن دادة محمد اكرم","بن دادة محمد اكرم",null,null,null,null,0,0,0,"نتائج ضعيفة جدا"]
[7,"بن صابرو محمد","بن صابرو محمد",null,null,null,null,0,0,0,"نتائج ضعيفة جدا"]
[{"$f":"A105+1","v":8},"بن عامر أسامة","بن عامر أسامة",null,null,null,null,0,0,0,"نتائج ضعيفة جدا"]
[9,"بن مجاهد هند","بن مجاهد هند",null,null,null,null,0,0,0,"نتائج ضعيفة جدا"]
[10,"بن معطي الحاج محمد","بن معطي الحاج محمد",null,null,null,null,0,0,0,"نتائج ضعيفة جدا"]
[11,"بوشيخي أحمد","بوشيخي أحمد",null,null,null,null,0,0,0,"نتائج ضعيفة جدا"]
[12,"تارقي عبد الفتاح","تارقي عبد الفتاح",null,null,null,null,0,0,0,"نتائج ضعيفة جدا"]
[13,"توجي ندى شرين سهام  1","توجي ندى شرين سهام  1",null,null,null,null,0,0,0,"نتائج ضعيفة جدا"]
[14,"جطني عادل","جطني عادل",null,null,null,null,0,0,0,"نتائج ضعيفة جدا"]
[15,"جلمودي آدم","جلمودي آدم",null,null,null,null,0,0,0,"نتائج ضعيفة جدا"]
[16,"حكومي حنان","حكومي حنان",null,null,null,null,0,0,0,"نتائج ضعيفة جدا"]
[17,"حواص محمد عماد الدين","حواص محمد عماد الدين",null,null,null,null,0,0,0,"نتائج ضعيفة جدا"]
[18,"خادر فيصل","خادر فيصل",null,null,null,null,0,0,0,"نتائج ضعيفة جدا"]
[19,"خليف فتحي","خليف فتحي",null,null,null,null,0,0,0,"نتائج ضعيفة جدا"]
[20,"دحماني محمد عبد الغاني","دحماني محمد عبد الغاني",null,null,null,null,0,0,0,"نتائج ضعيفة جدا"]
[21,"زايد شيماء","زايد شيماء",null,null,null,null,0,0,0,"نتائج ضعيفة جدا"]
[22,"زكاري اسمهان","زكاري اسمهان",null,null,null,null,0,0,0,"نتائج ضعيفة جدا"]
[23,"سيرات فؤاد","سيرات فؤاد",null,null,null,null,0,0,0,"نتائج ضعيفة جدا"]
[24,"شيحة خولة","شيحة خولة",null,null,null,null,0,0,0,"نتائج ضعيفة جدا"]
[25,"صباح دلال","صباح دلال",null,null,null,null,0,0,0,"نتائج ضعيفة جدا"]
[26,"عبيد حياة","عبيد حياة",null,null,null,null,0,0,0,"نتائج ضعيفة جدا"]
[27,"قاسمي رحمة","قاسمي رحمة",null,null,null,null,0,0,0,"نتائج ضعيفة جدا"]
[28,"قدير انفال",null,null,null,null,null,0,0,0,"نتائج ضعيفة جدا"]
[29,"لغزال عبد المجيد",null,null,null,null,null,0,0,0,"نتائج ضعيفة جدا"]
[30,"محجوب عبد الجليل","محجوب عبد الجليل",null,null,null,null,0,0,0,"نتائج ضعيفة جدا"]
[31,"معراج أمينة",null,null,null,null,null,0,0,0,"نتائج ضعيفة جدا"]
[32,"معمري نورية",null,null,null,null,null,0,0,0,"نتائج ضعيفة جدا"]
[]
[]
[null,"فوق المعدل",null,{"$f":"COUNTIF(I99:I130,\">=10\")","v":0},null,"تحت المعدل",null,{"$f":"COUNTIF(I99:I130,\"<10\")","v":32},null,"معدل القسم",{"$f":"AVERAGE(I99:I130)","v":0}]

{"sheet":"3تسيير و إقتصاد","index":3,"n_rows":97,"n_cols":47,"rows_kept":97,"cut":false,"hidden":false,"merged":[[92,1,92,2],[93,1,93,2],[96,1,96,2],[96,5,96,6],[87,1,87,2],[88,1,88,2],[89,1,89,2],[90,1,90,2],[91,1,91,2],[81,1,81,2],[82,1,82,2],[84,1,84,2],[85,1,85,2],[86,1,86,2],[76,1,76,2],[77,1,77,2],[78,1,78,2],[79,1,79,2],[80,1,80,2],[71,0,72,10],[73,1,73,2],[73,10,73,11],[74,1,74,2],[75,1,75,2],[68,8,68,10],[69,0,69,3],[69,8,69,10],[70,0,70,3],[70,8,70,10],[58,1,58,2],[59,1,59,2],[62,1,62,2],[62,5,62,6],[68,0,68,3],[68,4,70,7],[53,1,53,2],[54,1,54,2],[55,1,55,2],[56,1,56,2],[57,1,57,2],[47,1,47,2],[48,1,48,2],[50,1,50,2],[51,1,51,2],[52,1,52,2],[42,1,42,2],[43,1,43,2],[44,1,44,2],[45,1,45,2],[46,1,46,2],[37,0,38,10],[39,1,39,2],[39,10,39,11],[40,1,40,2],[41,1,41,2],[34,0,34,3],[34,4,36,7],[34,8,34,10],[35,0,35,3],[35,8,35,10],[36,0,36,3],[36,8,36,10],[0,35,0,38],[0,39,2,42],[0,43,0,46],[1,35,1,38],[1,43,1,46],[2,35,2,38],[2,43,2,46],[13,36,13,37],[14,36,14,37],[8,36,8,37],[9,36,9,37],[10,36,10,37],[11,36,11,37],[12,36,12,37],[24,18,24,19],[25,18,25,19],[19,18,19,19],[20,18,20,19],[21,18,21,19],[22,18,22,19],[23,18,23,19],[3,35,4,46],[5,36,5,37],[5,46,5,47],[6,36,6,37],[7,36,7,37],[16,36,16,37],[17,36,17,37],[18,36,18,37],[24,36,24,37],[25,36,25,37],[19,36,19,37],[20,36,20,37],[21,36,21,37],[22,36,22,37],[23,36,23,37],[13,18,13,19],[14,18,14,19],[16,18,16,19],[17,18,17,19],[18,18,18,19],[8,18,8,19],[9,18,9,19],[10,18,10,19],[11,18,11,19],[12,18,12,19],[3,17,4,28],[5,18,5,19],[5,28,5,29],[6,18,6,19],[7,18,7,19],[0,17,0,20],[0,21,2,24],[0,25,0,28],[1,17,1,20],[1,25,1,28],[2,17,2,20],[2,25,2,28],[0,0,0,3],[0,4,2,7],[0,8,0,10],[1,0,1,3],[1,8,1,10],[2,0,2,3],[2,8,2,10],[14,1,14,2],[3,0,4,10],[5,1,5,2],[5,10,5,11],[6,1,6,2],[7,1,7,2],[8,1,8,2],[9,1,9,2],[10,1,10,2],[11,1,11,2],[12,1,12,2],[13,1,13,2],[28,1,28,2],[36,13,37,15],[38,13,38,15],[70,13,71,15],[72,13,72,15],[2,13,3,15],[4,13,4,15],[28,44,28,45],[28,40,28,41],[28,36,28,37],[28,26,28,27],[28,22,28,23],[28,18,28,19],[28,5,28,6],[16,1,16,2],[17,1,17,2],[18,1,18,2],[19,1,19,2],[20,1,20,2],[21,1,21,2],[22,1,22,2],[23,1,23,2],[24,1,24,2],[25,1,25,2]]}
["ثانوية :الشهيد سعيداني أحمد",null,null,null,"الفصل الاول",null,null,null,"الــــــــمادة : اللغة العربية و آدابهـــا",null,null,null,null,null,null,null,null,"ثانوية :الشه+S1:AE26يد سعيداني أحمد",null,null,null,"الفصل الثاني",null,null,null,"الــــــــمادة : آداب وفلســــــفة",null,null,null,null,null,null,null,null,null,"ثانوية :الشه+S1:AE26يد سعيداني أحمد",null,null,null,"الفصل الثالث",null,null,null,"الــــــــمادة : آداب وفلســــــفة"]
["القســــــــــــــــم: 3ت.إق",null,null,null,null,null,null,null,"الموسم الدراسى: 2019/2018",null,null,null,null,null,null,null,null,"القســــــــــــــــم: 3ت.إق",null,null,null,null,null,null,null,"الموسم الدراسى: 2019/2018",null,null,null,null,null,null,null,null,null,"القســــــــــــــــم: 3ت.إق",null,null,null,null,null,null,null,"الموسم الدراسى: 2019/2018"]
["الأستاذة : حـــــمان يمنى",null,null,null,null,null,null,null,"ولايــــــة : بشــــــار",null,null,null,null,"أنشطـــــــة التقويــــــــم",null,null,null,"الأستاذة : حـــــمان يمنى",null,null,null,null,null,null,null,"ولايــــــة : بشــــــار",null,null,null,null,null,null,null,null,null,"الأستاذة : حـــــمان يمنى",null,null,null,null,null,null,null,"ولايــــــة : بشــــــار"]
["القـــــــــــــــــــــــــائمة الاسمية للتلاميـــــــــــــــــــــــــــــــــــذ",null,null,null,null,null,null,null,null,null,null,null,null,null,null,null,null,"القـــــــــــــــــــــــــائمة الاسمية للتلاميـــــــــــــــــــــــــــــــــــذ",null,null,null,null,null,null,null,null,null,null,null,null,null,null,null,null,null,"القـــــــــــــــــــــــــائمة الاسمية للتلاميـــــــــــــــــــــــــــــــــــذ"]
[]
["الرقم","الاسم  و اللقب",null,"م.المستمرة","تط/شفهي","معدل الفروض ","الاختبار","الاختبار/40","المعدل","م.المعامل","الملاحظة",null,null,"تعبير كتابي","واجب منزلي","مشروع",null,"الرقم","الاسم  و اللقب",null,"م.المستمرة","تط/شفهي","معدل الفروض ","الاختبار","الاختبار*2","المعدل","المعامل","المجموع","الملاحظة",null,null,null,null,null,null,"الرقم","الاسم  و اللقب",null,"م.المستمرة","تط/شفهي","معدل الفروض ","الاختبار","الاختبار*2","المعدل","المعامل","المجموع","الملاحظة"]
[1,"العياشي عائشة","العياشي عائشة","14.00","12.00","12.00","12.50",{"$f":"G7*2","v":25},{"$f":"(H7+F7+E7+D7)/5","v":12.6},{"$f":"I7*3","v":37.799999999999997},{"$f":"IF(I7>=18,\"نتائج ممتازة\",IF(I7>=14,\"نتائج جيدة جدا\",IF(I7>=12,\" نتائج جد حسنة\",IF(I7>=10,\"نتائج متوسطة\",IF(I7>=7,\"نتائج ضعيفة\",\"نتائج ضعيفة جدا\")))))","v":" نتائج جد حسنة"},null,null,null,null,null,null,1,"العياشي عائشة","العياشي عائشة",null,null,null,null,{"$f":"X7*2","v":0},{"$f":"(Y7+W7)/3","v":0},3,{"$f":"Z7*AA7","v":0},{"$f":"IF(Z7>=18,\"نتائج ممتازة\",IF(Z7>=14,\"نتائج جيدة جدا\",IF(Z7>=12,\" نتائج جد حسنة\",IF(Z7>=10,\"نتائج متوسطة\",IF(Z7>=7,\"نتائج ضعيفة\",\"نتائج ضعيفة جدا\")))))","v":"نتائج ضعيفة جدا"},null,null,null,null,null,null,1,"العياشي عائشة","العياشي عائشة",null,null,null,null,{"$f":"AP7*2","v":0},{"$f":"(AQ7+AO7)/3","v":0},3,{"$f":"AR7*AS7","v":0},{"$f":"IF(AR7>=18,\"نتائج ممتازة\",IF(AR7>=14,\"نتائج جيدة جدا\",IF(AR7>=12,\" نتائج جد حسنة\",IF(AR7>=10,\"نتائج متوسطة\",IF(AR7>=7,\"نتائج ضعيفة\",\"نتائج ضعيفة جدا\")))))","v":"نتائج ضعيفة جدا"}]
[2,"برهمي أمين","برهمي أمين","10.00","10.00","06.00","06.00",{"$f":"G8*2","v":12},{"$f":"(H8+F8+E8+D8)/5","v":7.6},{"$f":"I8*3","v":22.799999999999997},"نتائج ضعيفة",null,null,null,null,null,null,2,"برهمي أمين","برهمي أمين",null,null,null,null,{"$f":"X8*2","v":0},{"$f":"(Y8+W8)/3","v":0},3,{"$f":"Z8*AA8","v":0},"نتائج ضعيفة جدا",null,null,null,null,null,null,2,"برهمي أمين","برهمي أمين",null,null,null,null,{"$f":"AP8*2","v":0},{"$f":"(AQ8+AO8)/3","v":0},3,{"$f":"AR8*AS8","v":0},"نتائج ضعيفة جدا"]
[3,"بلقاسم سارة","بلقاسم سارة","13.00","12.00","11.00","11.25",22.5,11.7,35.099999999999994,"نتائج متوسطة",null,null,null,null,null,null,3,"بلقاسم سارة","بلقاسم سارة",null,null,null,null,0,0,3,0,"نتائج ضعيفة جدا",null,null,null,null,null,null,3,"بلقاسم سارة","بلقاسم سارة",null,null,null,null,0,0,3,0,"نتائج ضعيفة جدا"]
[4,"بن أحمد محمد لأمين","بن أحمد محمد لأمين","12.00","11.00","06.00","07.50",15,8.8000000000000007,26.400000000000002,"نتائج ضعيفة",null,null,null,null,null,null,4,"بن أحمد محمد لأمين","بن أحمد محمد لأمين",null,null,null,null,0,0,3,0,"نتائج ضعيفة جدا",null,null,null,null,null,null,4,"بن أحمد محمد لأمين","بن أحمد محمد لأمين",null,null,null,null,0,0,3,0,"نتائج ضعيفة جدا"]
[5,"بودي إلياس","بودي إلياس","11.00","10.00","08.00","06.50",13,8.4,25.200000000000003,"نتائج ضعيفة",null,null,null,null,null,null,5,"بودي إلياس","بودي إلياس",null,null,null,null,0,0,3,0,"نتائج ضعيفة جدا",null,null,null,null,null,null,5,"بودي إلياس","بودي إلياس",null,null,null,null,0,0,3,0,"نتائج ضعيفة جدا"]
[6,"بودي سمية","بودي سمية","14.00","12.00","10.50","13.00",26,12.5,37.5," نتائج جد حسنة",null,null,null,null,null,null,6,"بودي سمية","بودي سمية",null,null,null,null,0,0,3,0,"نتائج ضعيفة جدا",null,null,null,null,null,null,6,"بودي سمية","بودي سمية",null,null,null,null,0,0,3,0,"نتائج ضعيفة جدا"]
[7,"تونسي حنان","تونسي حنان","14.00","12.00","07.25","14.00",28,12.25,36.75," نتائج جد حسنة",null,null,null,null,null,null,7,"تونسي حنان","تونسي حنان",null,null,null,null,0,0,3,0,"نتائج ضعيفة جدا",null,null,null,null,null,null,7,"تونسي حنان","تونسي حنان",null,null,null,null,0,0,3,0,"نتائج ضعيفة جدا"]
[8,"حكومي أحمد عبد الكريم","حكومي أحمد عبد الكريم","10.00","10.00","06.00","03.25",6.5,6.5,19.5,"نتائج ضعيفة جدا",null,null,null,null,null,null,8,"حكومي أحمد عبد الكريم","حكومي أحمد عبد الكريم",null,null,null,null,0,0,3,0,"نتائج ضعيفة جدا",null,null,null,null,null,null,8,"حكومي أحمد عبد الكريم","حكومي أحمد عبد الكريم",null,null,null,null,0,0,3,0,"نتائج ضعيفة جدا"]
[9,"دحام فاطمة الزهراء","دحام فاطمة الزهراء","13.50","12.00","08.25","07.25",14.5,9.65,28.950000000000003,"نتائج ضعيفة",null,null,null,null,null,null,9,"دحام فاطمة الزهراء","دحام فاطمة الزهراء",null,null,null,null,0,0,3,0,"نتائج ضعيفة جدا",null,null,null,null,null,null,9,"دحام فاطمة الزهراء","دحام فاطمة الزهراء",null,null,null,null,0,0,3,0,"نتائج ضعيفة جدا"]
[10,"صديقي أمال",null,"12.00","11.00",7,"08.50",17,9.4,28.200000000000003,"نتائج ضعيفة",null,null,null,null,null,null,10,"صديقي أمال",null,null,null,null,null,0,0,3,0,"نتائج ضعيفة جدا",null,null,null,null,null,null,10,"صديقي أمال",null,null,null,null,null,0,0,3,0,"نتائج ضعيفة جدا"]
[11,"صديقي نور الهدى","صديقي نور الهدى","12.00","11.00","07.00","09.50",19,9.8000000000000007,29.400000000000002,"نتائج ضعيفة",null,null,null,null,null,null,11,"صديقي نور الهدى","صديقي نور الهدى",null,null,null,null,0,0,3,0,"نتائج ضعيفة جدا",null,null,null,null,null,null,11,"صديقي نور الهدى","صديقي نور الهدى",null,null,null,null,0,0,3,0,"نتائج ضعيفة جدا"]
[12,"عبد الحق شهرزاد","عبد الحق شهرزاد","13.50","12.00",11,"11.25",22.5,11.8,35.400000000000006,"نتائج متوسطة",null,null,null,null,null,null,12,"عبد الحق شهرزاد","عبد الحق شهرزاد",null,null,null,null,0,0,3,0,"نتائج ضعيفة جدا",null,null,null,null,null,null,12,"عبد الحق شهرزاد","عبد الحق شهرزاد",null,null,null,null,0,0,3,0,"نتائج ضعيفة جدا"]
[13,"عفوس نور الهدى","عفوس نور الهدى","11.00","10.00","05.00","09.00",18,8.8000000000000007,26.400000000000002,"نتائج ضعيفة",null,null,null,null,null,null,13,"عفوس نور الهدى","عفوس نور الهدى",null,null,null,null,0,0,3,0,"نتائج ضعيفة جدا",null,null,null,null,null,null,13,"عفوس نور الهدى","عفوس نور الهدى",null,null,null,null,0,0,3,0,"نتائج ضعيفة جدا"]
[14,"مازوز وكيب","مازوز وكيب","12.00","11.50","03.00","12.50",25,10.3,30.900000000000002,"نتائج متوسطة",null,null,null,null,null,null,14,"مازوز وكيب","مازوز وكيب",null,null,null,null,0,0,3,0,"نتائج ضعيفة جدا",null,null,null,null,null,null,14,"مازوز وكيب","مازوز وكيب",null,null,null,null,0,0,3,0,"نتائج ضعيفة جدا"]
[15,"محمودي أيمن","محمودي أيمن","12.00","11.00","07.50","08.50",17,9.5,28.5,"نتائج ضعيفة",null,null,null,null,null,null,15,"محمودي أيمن","محمودي أيمن",null,null,null,null,0,0,3,0,"نتائج ضعيفة جدا",null,null,null,null,null,null,15,"محمودي أيمن","محمودي أيمن",null,null,null,null,0,0,3,0,"نتائج ضعيفة جدا"]
[16,"مخلوفي الفاروق","مخلوفي الفاروق","10.00","08.00","03.50","06.25",12.5,6.8,20.399999999999999,"نتائج ضعيفة جدا",null,null,null,null,null,null,16,"مخلوفي الفاروق","مخلوفي الفاروق",null,null,null,null,0,0,3,0,"نتائج ضعيفة جدا",null,null,null,null,null,null,16,"مخلوفي الفاروق","مخلوفي الفاروق",null,null,null,null,0,0,3,0,"نتائج ضعيفة جدا"]
[17,"مسعودي نصيرة","مسعودي نصيرة","13.00","12.00","04.75","11.25",22.5,10.45,31.349999999999998,"نتائج متوسطة",null,null,null,null,null,null,17,"مسعودي نصيرة","مسعودي نصيرة",null,null,null,null,0,0,3,0,"نتائج ضعيفة جدا",null,null,null,null,null,null,17,"مسعودي نصيرة","مسعودي نصيرة",null,null,null,null,0,0,3,0,"نتائج ضعيفة جدا"]
[18,"معمري فايزة","معمري فايزة","12.50","11.50","05.25","06.50",13,8.4499999999999993,25.349999999999998,"نتائج ضعيفة",null,null,null,null,null,null,18,"معمري فايزة","معمري فايزة",null,null,null,null,0,0,3,0,"نتائج ضعيفة جدا",null,null,null,null,null,null,18,"معمري فايزة","معمري فايزة",null,null,null,null,0,0,3,0,"نتائج ضعيفة جدا"]
[19,"هدلي هشام","هدلي هشام","12.00","11.00","08.00","10.50",21,10.4,31.200000000000003,"نتائج متوسطة",null,null,null,null,null,null,19,"هدلي هشام","هدلي هشام",null,null,null,null,0,0,3,0,"نتائج ضعيفة جدا",null,null,null,null,null,null,19,"هدلي هشام","هدلي هشام",null,null,null,null,0,0,3,0,"نتائج ضعيفة جدا"]
[20,"هلال ريناس","هلال ريناس","13.50","12.00","03.75","08.50",17,9.25,27.75,"نتائج ضعيفة",null,null,null,null,null,null,20,"هلال ريناس","هلال ريناس",null,null,null,null,0,0,3,0,"نتائج ضعيفة جدا",null,null,null,null,null,null,20,"هلال ريناس","هلال ريناس",null,null,null,null,0,0,3,0,"نتائج ضعيفة جدا"]
[]
[]
[null,"فوق المعدل",null,{"$f":"COUNTIF(I7:I26,\">=10\")","v":8},null,"تحت المعدل",null,{"$f":"COUNTIF(I7:I27,\"<10\")","v":12},null,"معدل القسم",{"$f":"AVERAGE(I7:I26)","v":9.7475000000000005},null,null,null,null,null,null,null,"فوق المعدل",null,{"$f":"COUNTIF(Z7:Z26,\">=10\")","v":0},null,"تحت المعدل",null,{"$f":"COUNTIF(Z7:Z27,\"<10\")","v":20},null,"معدل القسم",null,{"$f":"AVERAGE(Z7:Z26)","v":0},null,null,null,null,null,null,null,"فوق المعدل",null,{"$f":"COUNTIF(AR7:AR26,\">=10\")","v":0},null,"تحت المعدل",null,{"$f":"COUNTIF(AR7:AR27,\"<10\")","v":20},null,"معدل القسم",null,{"$f":"AVERAGE(AR7:AR26)","v":0}]
[]
[]
[]
[]
[]
["ثانوية :الشهيد سعيداني أحمد",null,null,null,"الفصل الثاني",null,null,null,"الــــــــمادة : اللغة العربية و آدابهـــا"]
["القســــــــــــــــم: 3ت.إق",null,null,null,null,null,null,null,"الموسم الدراسى: 2019/2018"]
["الأستاذة : حـــــمان يمنى",null,null,null,null,null,null,null,"ولايــــــة : بشــــــار",null,null,null,null,"أنشطـــــــة التقويــــــــم"]
["القـــــــــــــــــــــــــائمة الاسمية للتلاميـــــــــــــــــــــــــــــــــــذ"]
[]
["الرقم","الاسم  و اللقب",null,"م.المستمرة","تط/شفهي","معدل الفروض ","الاختبار","الاختبار/40","المعدل","م.المعامل","الملاحظة",null,null,"تعبير كتابي","واجب منزلي","مشروع"]
[1,"العياشي عائشة","العياشي عائشة",null,null,null,null,{"$f":"G41*2","v":0},{"$f":"(H41+F41+E41+D41)/5","v":0},{"$f":"I41*3","v":0},{"$f":"IF(I41>=18,\"نتائج ممتازة\",IF(I41>=14,\"نتائج جيدة جدا\",IF(I41>=12,\" نتائج جد حسنة\",IF(I41>=10,\"نتائج متوسطة\",IF(I41>=7,\"نتائج ضعيفة\",\"نتائج ضعيفة جدا\")))))","v":"نتائج ضعيفة جدا"}]
[2,"برهمي أمين","برهمي أمين",null,null,null,null,{"$f":"G42*2","v":0},{"$f":"(H42+F42+E42+D42)/5","v":0},{"$f":"I42*3","v":0},"نتائج ضعيفة جدا"]
[3,"بلقاسم سارة","بلقاسم سارة",null,null,null,null,0,0,0,"نتائج ضعيفة جدا"]
[4,"بن أحمد محمد لأمين","بن أحمد محمد لأمين",null,null,null,null,0,0,0,"نتائج ضعيفة جدا"]
[5,"بودي إلياس","بودي إلياس",null,null,null,null,0,0,0,"نتائج ضعيفة جدا"]
[6,"بودي سمية","بودي سمية",null,null,null,null,0,0,0,"نتائج ضعيفة جدا"]
[7,"تونسي حنان","تونسي حنان",null,null,null,null,0,0,0,"نتائج ضعيفة جدا"]
[8,"حكومي أحمد عبد الكريم","حكومي أحمد عبد الكريم",null,null,null,null,0,0,0,"نتائج ضعيفة جدا"]
[9,"دحام فاطمة الزهراء","دحام فاطمة الزهراء",null,null,null,null,0,0,0,"نتائج ضعيفة جدا"]
[10,"صديقي أمال",null,null,null,null,null,0,0,0,"نتائج ضعيفة جدا"]
[11,"صديقي نور الهدى","صديقي نور الهدى",null,null,null,null,0,0,0,"نتائج ضعيفة جدا"]
[12,"عبد الحق شهرزاد","عبد الحق شهرزاد",null,null,null,null,0,0,0,"نتائج ضعيفة جدا"]
[13,"عفوس نور الهدى","عفوس نور الهدى",null,null,null,null,0,0,0,"نتائج ضعيفة جدا"]
[14,"مازوز وكيب","مازوز وكيب",null,null,null,null,0,0,0,"نتائج ضعيفة جدا"]
[15,"محمودي أيمن","محمودي أيمن",null,null,null,null,0,0,0,"نتائج ضعيفة جدا"]
[16,"مخلوفي الفاروق","مخلوفي الفاروق",null,null,null,null,0,0,0,"نتائج ضعيفة جدا"]
[17,"مسعودي نصيرة","مسعودي نصيرة",null,null,null,null,0,0,0,"نتائج ضعيفة جدا"]
[18,"معمري فايزة","معمري فايزة",null,null,null,null,0,0,0,"نتائج ضعيفة جدا"]
[19,"هدلي هشام","هدلي هشام",null,null,null,null,0,0,0,"نتائج ضعيفة جدا"]
[20,"هلال ريناس","هلال ريناس",null,null,null,null,0,0,0,"نتائج ضعيفة جدا"]
[]
[]
[null,"فوق المعدل",null,{"$f":"COUNTIF(I41:I60,\">=10\")","v":0},null,"تحت المعدل",null,{"$f":"COUNTIF(I41:I61,\"<10\")","v":20},null,null,{"$f":"AVERAGE(I41:I60)","v":0}]
[]
[]
[]
[]
[]
["ثانوية :الشهيد سعيداني أحمد",null,null,null,"الفصل الثالث",null,null,null,"الــــــــمادة : اللغة العربية و آدابهـــا"]
["القســــــــــــــــم: 3ت.إق",null,null,null,null,null,null,null,"الموسم الدراسى: 2019/2018"]
["الأستاذة : حـــــمان يمنى",null,null,null,null,null,null,null,"ولايــــــة : بشــــــار",null,null,null,null,"أنشطـــــــة التقويــــــــم"]
["القـــــــــــــــــــــــــائمة الاسمية للتلاميـــــــــــــــــــــــــــــــــــذ"]
[]
["الرقم","الاسم  و اللقب",null,"م.المستمرة","تط/شفهي","معدل الفروض ","الاختبار","الاختبار/40","المعدل","م.المعامل","الملاحظة",null,null,"تعبير كتابي","واجب منزلي","مشروع"]
[1,"العياشي عائشة","العياشي عائشة",null,null,null,null,{"$f":"G75*2","v":0},{"$f":"(H75+F75+E75+D75)/5","v":0},{"$f":"I75*3","v":0},{"$f":"IF(I75>=18,\"نتائج ممتازة\",IF(I75>=14,\"نتائج جيدة جدا\",IF(I75>=12,\" نتائج جد حسنة\",IF(I75>=10,\"نتائج متوسطة\",IF(I75>=7,\"نتائج ضعيفة\",\"نتائج ضعيفة جدا\")))))","v":"نتائج ضعيفة جدا"}]
[2,"برهمي أمين","برهمي أمين",null,null,null,null,{"$f":"G76*2","v":0},{"$f":"(H76+F76+E76+D76)/5","v":0},{"$f":"I76*3","v":0},"نتائج ضعيفة جدا"]
[3,"بلقاسم سارة","بلقاسم سارة",null,null,null,null,0,0,0,"نتائج ضعيفة جدا"]
[4,"بن أحمد محمد لأمين","بن أحمد محمد لأمين",null,null,null,null,0,0,0,"نتائج ضعيفة جدا"]
[5,"بودي إلياس","بودي إلياس",null,null,null,null,0,0,0,"نتائج ضعيفة جدا"]
[6,"بودي سمية","بودي سمية",null,null,null,null,0,0,0,"نتائج ضعيفة جدا"]
[7,"تونسي حنان","تونسي حنان",null,null,null,null,0,0,0,"نتائج ضعيفة جدا"]
[8,"حكومي أحمد عبد الكريم","حكومي أحمد عبد الكريم",null,null,null,null,0,0,0,"نتائج ضعيفة جدا"]
[9,"دحام فاطمة الزهراء","دحام فاطمة الزهراء",null,null,null,null,0,0,0,"نتائج ضعيفة جدا"]
[10,"صديقي أمال",null,null,null,null,null,0,0,0,"نتائج ضعيفة جدا"]
[11,"صديقي نور الهدى","صديقي نور الهدى",null,null,null,null,0,0,0,"نتائج ضعيفة جدا"]
[12,"عبد الحق شهرزاد","عبد الحق شهرزاد",null,null,null,null,0,0,0,"نتائج ضعيفة جدا"]
[13,"عفوس نور الهدى","عفوس نور الهدى",null,null,null,null,0,0,0,"نتائج ضعيفة جدا"]
[14,"مازوز وكيب","مازوز وكيب",null,null,null,null,0,0,0,"نتائج ضعيفة جدا"]
[15,"محمودي أيمن","محمودي أيمن",null,null,null,null,0,0,0,"نتائج ضعيفة جدا"]
[16,"مخلوفي الفاروق","مخلوفي الفاروق",null,null,null,null,0,0,0,"نتائج ضعيفة جدا"]
[17,"مسعودي نصيرة","مسعودي نصيرة",null,null,null,null,0,0,0,"نتائج ضعيفة جدا"]
[18,"معمري فايزة","معمري فايزة",null,null,null,null,0,0,0,"نتائج ضعيفة جدا"]
[19,"هدلي هشام","هدلي هشام",null,null,null,null,0,0,0,"نتائج ضعيفة جدا"]
[20,"هلال ريناس","هلال ريناس",null,null,null,null,0,0,0,"نتائج ضعيفة جدا"]
[]
[]
[null,"فوق المعدل",null,{"$f":"COUNTIF(I75:I94,\">=10\")","v":0},null,"تحت المعدل",null,{"$f":"COUNTIF(I75:I95,\"<10\")","v":20},null,null,{"$f":"AVERAGE(I75:I94)","v":0}]

{"sheet":"3آداب وفلسفة","index":4,"n_rows":124,"n_cols":48,"rows_kept":124,"cut":false,"hidden":false,"merged":[[118,1,118,2],[119,1,119,2],[120,1,120,2],[123,1,123,2],[123,5,123,6],[123,9,123,10],[107,1,107,2],[108,1,108,2],[109,1,109,2],[110,1,110,2],[111,1,111,2],[112,1,112,2],[113,1,113,2],[114,1,114,2],[115,1,115,2],[99,1,99,2],[100,1,100,2],[101,1,101,2],[102,1,102,2],[103,1,103,2],[104,1,104,2],[105,1,105,2],[106,1,106,2],[117,1,117,2],[91,1,91,2],[91,11,91,12],[92,1,92,2],[93,1,93,2],[94,1,94,2],[95,1,95,2],[96,1,96,2],[97,1,97,2],[98,1,98,2],[77,1,77,2],[80,1,80,2],[80,5,80,6],[80,9,80,10],[86,0,86,3],[86,4,88,7],[86,8,86,11],[87,0,87,3],[87,8,87,11],[88,0,88,3],[88,8,88,11],[67,1,67,2],[68,1,68,2],[69,1,69,2],[70,1,70,2],[71,1,71,2],[72,1,72,2],[74,1,74,2],[75,1,75,2],[76,1,76,2],[58,1,58,2],[59,1,59,2],[60,1,60,2],[61,1,61,2],[62,1,62,2],[63,1,63,2],[64,1,64,2],[65,1,65,2],[66,1,66,2],[49,1,49,2],[50,1,50,2],[51,1,51,2],[52,1,52,2],[53,1,53,2],[54,1,54,2],[55,1,55,2],[56,1,56,2],[57,1,57,2],[43,0,43,3],[43,4,45,7],[43,8,43,11],[44,0,44,3],[44,8,44,11],[45,0,45,3],[45,8,45,11],[48,1,48,2],[48,11,48,12],[37,37,37,38],[37,41,37,42],[37,45,37,46],[29,37,29,38],[31,37,31,38],[32,37,32,38],[33,37,33,38],[34,37,34,38],[24,37,24,38],[25,37,25,38],[26,37,26,38],[27,37,27,38],[28,37,28,38],[19,37,19,38],[20,37,20,38],[21,37,21,38],[22,37,22,38],[23,37,23,38],[14,37,14,38],[15,37,15,38],[16,37,16,38],[17,37,17,38],[18,37,18,38],[0,40,2,43],[0,44,0,47],[1,36,1,39],[1,44,1,47],[2,36,2,39],[2,44,2,47],[34,19,34,20],[37,19,37,20],[37,23,37,24],[37,27,37,28],[0,36,0,39],[3,36,4,47],[5,37,5,38],[5,47,5,48],[6,37,6,38],[7,37,7,38],[8,37,8,38],[9,37,9,38],[10,37,10,38],[11,37,11,38],[12,37,12,38],[13,37,13,38],[28,19,28,20],[29,19,29,20],[31,19,31,20],[32,19,32,20],[33,19,33,20],[23,19,23,20],[24,19,24,20],[25,19,25,20],[26,19,26,20],[27,19,27,20],[18,19,18,20],[19,19,19,20],[20,19,20,20],[21,19,21,20],[22,19,22,20],[13,19,13,20],[14,19,14,20],[15,19,15,20],[16,19,16,20],[17,19,17,20],[8,19,8,20],[9,19,9,20],[10,19,10,20],[11,19,11,20],[12,19,12,20],[3,18,4,29],[5,19,5,20],[5,29,5,30],[6,19,6,20],[7,19,7,20],[0,18,0,21],[0,22,2,25],[0,26,0,29],[1,18,1,21],[1,26,1,29],[2,18,2,21],[2,26,2,29],[0,0,0,3],[0,4,2,7],[0,8,0,11],[1,0,1,3],[1,8,1,11],[2,0,2,3],[2,8,2,11],[14,1,14,2],[5,1,5,2],[5,11,5,12],[6,1,6,2],[7,1,7,2],[8,1,8,2],[9,1,9,2],[10,1,10,2],[11,1,11,2],[12,1,12,2],[13,1,13,2],[3,0,4,10],[17,1,17,2],[18,1,18,2],[19,1,19,2],[20,1,20,2],[21,1,21,2],[22,1,22,2],[23,1,23,2],[24,1,24,2],[25,1,25,2],[3,11,4,11],[46,0,47,10],[46,11,47,11],[89,0,90,10],[89,11,90,11],[2,14,3,16],[4,14,4,16],[45,14,46,16],[47,14,47,16],[88,14,89,16],[90,14,90,16],[37,9,37,10],[27,1,27,2],[28,1,28,2],[29,1,29,2],[31,1,31,2],[37,1,37,2],[37,5,37,6],[32,1,32,2],[33,1,33,2],[34,1,34,2],[26,1,26,2],[15,1,15,2],[16,1,16,2]]}
["ثانوية :الشهيد سعيداني أحمد",null,null,null,"الفصل الاول",null,null,null,"الــــــــمادة : اللغة العربية و آدابهـــا",null,null,null,null,null,null,null,null,null,{"$f":"S1:M24ثانوية :الشهيد سعيداني أحمد","v":{"$error":"#NAME?"}},null,null,null,"الفصل الثاني",null,null,null,"الــــــــمادة : آداب وفلســــــفة",null,null,null,null,null,null,null,null,null,{"$f":"AK1:M24ثانوية :الشهيد سعيداني أحمد","v":{"$error":"#NAME?"}},null,null,null,"الفصل الثالث",null,null,null,"الــــــــمادة : آداب وفلســــــفة"]
["القســــــــــــــــم: 3أ.فل",null,null,null,null,null,null,null,"الموسم الدراسى: 2019/2018",null,null,null,null,null,null,null,null,null,"القســــــــــــــــم: 3أ.فل",null,null,null,null,null,null,null,"الموسم الدراسى: 2019/2018",null,null,null,null,null,null,null,null,null,"القســــــــــــــــم: 3أ.فل",null,null,null,null,null,null,null,"الموسم الدراسى: 2019/2018"]
["الأستاذة : حـــــمان يمنى",null,null,null,null,null,null,null,"ولايــــــة : بشــــــار",null,null,null,null,null,"أنشطـــــــة التقويــــــــم",null,null,null,"الأستاذة : حـــــمان يمنى",null,null,null,null,null,null,null,"ولايــــــة : بشــــــار",null,null,null,null,null,null,null,null,null,"الأستاذة : حـــــمان يمنى",null,null,null,null,null,null,null,"ولايــــــة : بشــــــار"]
["القـــــــــــــــــــــــــائمة الاسمية للتلاميـــــــــــــــــــــــــــــــــــذ",null,null,null,null,null,null,null,null,null,null,null,null,null,null,null,null,null,"القـــــــــــــــــــــــــائمة الاسمية للتلاميـــــــــــــــــــــــــــــــــــذ",null,null,null,null,null,null,null,null,null,null,null,null,null,null,null,null,null,"القـــــــــــــــــــــــــائمة الاسمية للتلاميـــــــــــــــــــــــــــــــــــذ"]
[]
["الرقم","الاسم  و اللقب",null,"م.المستمرة","تط/شفهي","الفرض 1","الفرض 2","معدل الفروض","الاختبار","الاختبار/40","المعدل","الملاحظة",null,null,"تعبير كتابي","واجب منزلي","مشروع",null,"الرقم","الاسم  و اللقب",null,"م.المستمرة","تط/شفهي","معدل الفروض ","الاختبار","الاختبار*2","المعدل","المعامل","المجموع","الملاحظة",null,null,null,null,null,null,"الرقم","الاسم  و اللقب",null,"م.المستمرة","تط/شفهي","معدل الفروض ","الاختبار","الاختبار*2","المعدل","المعامل","المجموع","الملاحظة"]
[1,"بكيرات وليد","بكيرات وليد","15.00","12.00",null,null,{"$f":"(G7+F7)/2","v":0},"12.00",{"$f":"I7*2","v":24},{"$f":"(J7+H7+E7+D7)/5","v":10.199999999999999},{"$f":"IF(I7>=18,\"نتائج ممتازة\",IF(I7>=14,\"نتائج جيدة جدا\",IF(I7>=12,\" نتائج جد حسنة\",IF(I7>=10,\"نتائج متوسطة\",IF(I7>=7,\"نتائج ضعيفة\",\"نتائج ضعيفة جدا\")))))","v":"نتائج ممتازة"},null,null,null,null,null,null,1,"بكيرات وليد","بكيرات وليد",null,null,null,null,{"$f":"Y7*2","v":0},{"$f":"(Z7+X7)/3","v":0},5,{"$f":"AA7*AB7","v":0},{"$f":"IF(AA7>=18,\"نتائج ممتازة\",IF(AA7>=14,\"نتائج جيدة جدا\",IF(AA7>=12,\" نتائج جد حسنة\",IF(AA7>=10,\"نتائج متوسطة\",IF(AA7>=7,\"نتائج ضعيفة\",\"نتائج ضعيفة جدا\")))))","v":"نتائج ضعيفة جدا"},null,null,null,null,null,null,1,"بكيرات وليد","بكيرات وليد",null,null,null,null,{"$f":"AQ7*2","v":0},{"$f":"(AR7+AP7)/3","v":0},5,{"$f":"AS7*AT7","v":0},{"$f":"IF(AS7>=18,\"نتائج ممتازة\",IF(AS7>=14,\"نتائج جيدة جدا\",IF(AS7>=12,\" نتائج جد حسنة\",IF(AS7>=10,\"نتائج متوسطة\",IF(AS7>=7,\"نتائج ضعيفة\",\"نتائج ضعيفة جدا\")))))","v":"نتائج ضعيفة جدا"}]
[{"$f":"A7+1","v":2},"بلبحري اكرام","بلبحري اكرام","14.00","12.00",null,null,{"$f":"(G8+F8)/2","v":0},"11.75",{"$f":"I8*2","v":23.5},{"$f":"(J8+H8+E8+D8)/5","v":9.9},"نتائج ممتازة",null,null,null,null,null,null,{"$f":"S7+1","v":2},"بلبحري اكرام","بلبحري اكرام",null,null,null,null,{"$f":"Y8*2","v":0},{"$f":"(Z8+X8)/3","v":0},5,{"$f":"AA8*AB8","v":0},"نتائج ضعيفة جدا",null,null,null,null,null,null,{"$f":"AK7+1","v":2},"بلبحري اكرام","بلبحري اكرام",null,null,null,null,{"$f":"AQ8*2","v":0},{"$f":"(AR8+AP8)/3","v":0},5,{"$f":"AS8*AT8","v":0},"نتائج ضعيفة جدا"]
[{"$f":"A8+1","v":3},"بن احمد روميسة","بن احمد روميسة","13.00","11.00",null,null,0,"12.50",25,9.8000000000000007,"نتائج ممتازة",null,null,null,null,null,null,{"$f":"S8+1","v":3},"بن احمد روميسة","بن احمد روميسة",null,null,null,null,0,0,5,0,"نتائج ضعيفة جدا",null,null,null,null,null,null,{"$f":"AK8+1","v":3},"بن احمد روميسة","بن احمد روميسة",null,null,null,null,0,0,5,0,"نتائج ضعيفة جدا"]
[{"$f":"A9+1","v":4},"بن ديدة اسلام","بن ديدة اسلام","11.00","10.00",null,null,0,"07.00",14,7,"نتائج ممتازة",null,null,null,null,null,null,{"$f":"S9+1","v":4},"بن ديدة اسلام","بن ديدة اسلام",null,null,null,null,0,0,5,0,"نتائج ضعيفة جدا",null,null,null,null,null,null,{"$f":"AK9+1","v":4},"بن ديدة اسلام","بن ديدة اسلام",null,null,null,null,0,0,5,0,"نتائج ضعيفة جدا"]
[5,"بن شكشك إلهام","بن شكشك إلهام","14.00","12.00",null,null,0,"09.50",19,9,"نتائج ممتازة",null,null,null,null,null,null,5,"بن شكشك إلهام","بن شكشك إلهام",null,null,null,null,0,0,5,0,"نتائج ضعيفة جدا",null,null,null,null,null,null,5,"بن شكشك إلهام","بن شكشك إلهام",null,null,null,null,0,0,5,0,"نتائج ضعيفة جدا"]
[6,"بن شهرة زوبيدة","بن شهرة زوبيدة","14.00","12.00",null,null,0,"10.50",21,9.4,"نتائج ممتازة",null,null,null,null,null,null,6,"بن شهرة زوبيدة","بن شهرة زوبيدة",null,null,null,null,0,0,5,0,"نتائج ضعيفة جدا",null,null,null,null,null,null,6,"بن شهرة زوبيدة","بن شهرة زوبيدة",null,null,null,null,0,0,5,0,"نتائج ضعيفة جدا"]
[7,"بن عامر أمال","بن عامر أمال","14.00","12.00",null,null,0,"15.00",30,11.2,"نتائج ممتازة",null,null,null,null,null,null,7,"بن عامر أمال","بن عامر أمال",null,null,null,null,0,0,5,0,"نتائج ضعيفة جدا",null,null,null,null,null,null,7,"بن عامر أمال","بن عامر أمال",null,null,null,null,0,0,5,0,"نتائج ضعيفة جدا"]
[{"$f":"A13+1","v":8},"بن على محمد شرف الدين","بن على محمد شرف الدين","13.00","11.00",null,null,0,"06.50",13,7.4,"نتائج ممتازة",null,null,null,null,null,null,{"$f":"S13+1","v":8},"بن على محمد شرف الدين","بن على محمد شرف الدين",null,null,null,null,0,0,5,0,"نتائج ضعيفة جدا",null,null,null,null,null,null,{"$f":"AK13+1","v":8},"بن على محمد شرف الدين","بن على محمد شرف الدين",null,null,null,null,0,0,5,0,"نتائج ضعيفة جدا"]
[9,"بن علي محمد","بن علي محمد","14.00","12.00",null,null,0,"04.75",9.5,7.1,"نتائج ممتازة",null,null,null,null,null,null,9,"بن علي محمد","بن علي محمد",null,null,null,null,0,0,5,0,"نتائج ضعيفة جدا",null,null,null,null,null,null,9,"بن علي محمد","بن علي محمد",null,null,null,null,0,0,5,0,"نتائج ضعيفة جدا"]
[10,"بن مجدوب عبد القادر صلاح الدين","بن مجدوب عبد القادر صلاح الدين","15.00","13.00",null,null,0,"09.50",19,9.4,"نتائج ممتازة",null,null,null,null,null,null,10,"بن مجدوب عبد القادر صلاح الدين","بن مجدوب عبد القادر صلاح الدين",null,null,null,null,0,0,5,0,"نتائج ضعيفة جدا",null,null,null,null,null,null,10,"بن مجدوب عبد القادر صلاح الدين","بن مجدوب عبد القادر صلاح الدين",null,null,null,null,0,0,5,0,"نتائج ضعيفة جدا"]
[11,"بن ميلود هاجر","بن ميلود هاجر","14.00","12.00",null,null,0,"10.25",20.5,9.3000000000000007,"نتائج ممتازة",null,null,null,null,null,null,11,"بن ميلود هاجر","بن ميلود هاجر",null,null,null,null,0,0,5,0,"نتائج ضعيفة جدا",null,null,null,null,null,null,11,"بن ميلود هاجر","بن ميلود هاجر",null,null,null,null,0,0,5,0,"نتائج ضعيفة جدا"]
[12,"بيان ريا ض","بيان ريا ض","11.00","11.00",null,null,0,"03.75",7.5,5.9,"نتائج ممتازة",null,null,null,null,null,null,12,"بيان ريا ض","بيان ريا ض",null,null,null,null,0,0,5,0,"نتائج ضعيفة جدا",null,null,null,null,null,null,12,"بيان ريا ض","بيان ريا ض",null,null,null,null,0,0,5,0,"نتائج ضعيفة جدا"]
[13,"حاكم ياسر","حاكم ياسر","13.00","12.00",null,null,0,"11.50",23,9.6,"نتائج ممتازة",null,null,null,null,null,null,13,"حاكم ياسر","حاكم ياسر",null,null,null,null,0,0,5,0,"نتائج ضعيفة جدا",null,null,null,null,null,null,13,"حاكم ياسر","حاكم ياسر",null,null,null,null,0,0,5,0,"نتائج ضعيفة جدا"]
[14,"حبيبي مروة","حبيبي مروة","13.00","11.50",null,null,0,"12.25",24.5,9.8000000000000007,"نتائج ممتازة",null,null,null,null,null,null,14,"حبيبي مروة","حبيبي مروة",null,null,null,null,0,0,5,0,"نتائج ضعيفة جدا",null,null,null,null,null,null,14,"حبيبي مروة","حبيبي مروة",null,null,null,null,0,0,5,0,"نتائج ضعيفة جدا"]
[15,"خالفي محمد","خالفي محمد","11.00","10.50",null,null,0,"12.50",25,9.3000000000000007,"نتائج ممتازة",null,null,null,null,null,null,15,"خالفي محمد","خالفي محمد",null,null,null,null,0,0,5,0,"نتائج ضعيفة جدا",null,null,null,null,null,null,15,"خالفي محمد","خالفي محمد",null,null,null,null,0,0,5,0,"نتائج ضعيفة جدا"]
[16,"دحمان معاد عصام الدين","دحمان معاد عصام الدين","10.50","10.00",null,null,0,"05.25",10.5,6.2,"نتائج ممتازة",null,null,null,null,null,null,16,"دحمان معاد عصام الدين","دحمان معاد عصام الدين",null,null,null,null,0,0,5,0,"نتائج ضعيفة جدا",null,null,null,null,null,null,16,"دحمان معاد عصام الدين","دحمان معاد عصام الدين",null,null,null,null,0,0,5,0,"نتائج ضعيفة جدا"]
[17,"دلاس فاطمة الزهراء","دلاس فاطمة الزهراء","14.00","12.00",null,null,0,"09.75",19.5,9.1,"نتائج ممتازة",null,null,null,null,null,null,17,"دلاس فاطمة الزهراء","دلاس فاطمة الزهراء",null,null,null,null,0,0,5,0,"نتائج ضعيفة جدا",null,null,null,null,null,null,17,"دلاس فاطمة الزهراء","دلاس فاطمة الزهراء",null,null,null,null,0,0,5,0,"نتائج ضعيفة جدا"]
[18,"زباش عائشة","زباش عائشة","12.50","11.00",null,null,0,"09.25",18.5,8.4,"نتائج ممتازة",null,null,null,null,null,null,18,"زباش عائشة","زباش عائشة",null,null,null,null,0,0,5,0,"نتائج ضعيفة جدا",null,null,null,null,null,null,18,"زباش عائشة","زباش عائشة",null,null,null,null,0,0,5,0,"نتائج ضعيفة جدا"]
[19,"ساعي اكرام","ساعي اكرام","13.00","11.50",null,null,0,"09.50",19,8.6999999999999993,"نتائج ممتازة",null,null,null,null,null,null,19,"ساعي اكرام","ساعي اكرام",null,null,null,null,0,0,5,0,"نتائج ضعيفة جدا",null,null,null,null,null,null,19,"ساعي اكرام","ساعي اكرام",null,null,null,null,0,0,5,0,"نتائج ضعيفة جدا"]
[20,"شنتوف صباح","شنتوف صباح","12.00","11.00",null,null,0,"09.50",19,8.4,"نتائج ممتازة",null,null,null,null,null,null,20,"شنتوف صباح","شنتوف صباح",null,null,null,null,0,0,5,0,"نتائج ضعيفة جدا",null,null,null,null,null,null,20,"شنتوف صباح","شنتوف صباح",null,null,null,null,0,0,5,0,"نتائج ضعيفة جدا"]
[21,"صالحي صافية","صالحي صافية","14.00","13.00",null,null,0,"10.75",21.5,9.6999999999999993,"نتائج ممتازة",null,null,null,null,null,null,21,"صالحي صافية","صالحي صافية",null,null,null,null,0,0,5,0,"نتائج ضعيفة جدا",null,null,null,null,null,null,21,"صالحي صافية","صالحي صافية",null,null,null,null,0,0,5,0,"نتائج ضعيفة جدا"]
[22,"عماري طارق","عماري طارق","13.50","12.00",null,null,0,"07.75",15.5,8.1999999999999993,"نتائج ممتازة",null,null,null,null,null,null,22,"عماري طارق","عماري طارق",null,null,null,null,0,0,5,0,"نتائج ضعيفة جدا",null,null,null,null,null,null,22,"عماري طارق","عماري طارق",null,null,null,null,0,0,5,0,"نتائج ضعيفة جدا"]
[23,"عمير محمد","عمير محمد","13.00","11.50",null,null,0,"10.50",21,9.1,"نتائج ممتازة",null,null,null,null,null,null,23,"عمير محمد","عمير محمد",null,null,null,null,0,0,5,0,"نتائج ضعيفة جدا",null,null,null,null,null,null,23,"عمير محمد","عمير محمد",null,null,null,null,0,0,5,0,"نتائج ضعيفة جدا"]
[24,"قندوزي عيدة","قندوزي عيدة","14.00","12.00",null,null,0,"09.50",19,9,"نتائج ممتازة",null,null,null,null,null,null,24,"قندوزي عيدة","قندوزي عيدة",null,null,null,null,0,0,5,0,"نتائج ضعيفة جدا",null,null,null,null,null,null,24,"قندوزي عيدة","قندوزي عيدة",null,null,null,null,0,0,5,0,"نتائج ضعيفة جدا"]
[25,"كبريت عائشة",null,"14.00","12.00",null,null,0,"07.50",15,8.1999999999999993,"نتائج ممتازة",null,null,null,null,null,null,25,"كبريت عائشة",null,null,null,null,null,0,0,5,0,"نتائج ضعيفة جدا",null,null,null,null,null,null,25,"كبريت عائشة",null,null,null,null,null,0,0,5,0,"نتائج ضعيفة جدا"]
[26,"مبروكي روميسة","كبريت عائشة","14.50","12.00",null,null,0,"11.25",22.5,9.8000000000000007,"نتائج ممتازة",null,null,null,null,null,null,26,"مبروكي روميسة","كبريت عائشة",null,null,null,null,0,0,5,0,"نتائج ضعيفة جدا",null,null,null,null,null,null,26,"مبروكي روميسة","كبريت عائشة",null,null,null,null,0,0,5,0,"نتائج ضعيفة جدا"]
[27,"مجدوب إلياس",null,"12.00","11.50",null,null,0,"11.75",23.5,9.4,"نتائج ممتازة",null,null,null,null,null,null,27,"مجدوب إلياس",null,null,null,null,null,0,0,5,0,"نتائج ضعيفة جدا",null,null,null,null,null,null,27,"مجدوب إلياس",null,null,null,null,null,0,0,5,0,"نتائج ضعيفة جدا"]
[28,"معطي صفاء",null,"14.00","12.00",null,null,0,"10.00",20,9.1999999999999993,"نتائج ممتازة",null,null,null,null,null,null,28,"معطي صفاء",null,null,null,null,null,0,0,5,0,"نتائج ضعيفة جدا",null,null,null,null,null,null,28,"معطي صفاء",null,null,null,null,null,0,0,5,0,"نتائج ضعيفة جدا"]
[29,"هدلي مريم",null,"15.00","12.00",null,null,0,"08.75",17.5,8.9,"نتائج ممتازة",null,null,null,null,null,null,29,"هدلي مريم",null,null,null,null,null,0,0,5,0,"نتائج ضعيفة جدا",null,null,null,null,null,null,29,"هدلي مريم",null,null,null,null,null,0,0,5,0,"نتائج ضعيفة جدا"]
[]
[]
[null,"فوق المعدل","معطي صفاء",{"$f":"COUNTIF(K7:K35,\">=10\")","v":2},null,"تحت المعدل",null,{"$f":"COUNTIF(K7:K35,\"<10\")","v":27},null,"معدل القسم",null,{"$f":"AVERAGE(K7:K35)","v":8.8482758620689648},null,null,null,null,null,null,null,"معطي صفاء","معطي صفاء",{"$f":"COUNTIF(AA7:AA32,\">=10\")","v":0},null,"تحت المعدل",null,{"$f":"COUNTIF(AA7:AA36,\"<10\")","v":29},null,"معدل القسم",null,{"$f":"AVERAGE(AA7:AA32)","v":0},null,null,null,null,null,null,null,"معطي صفاء","معطي صفاء",{"$f":"COUNTIF(AS7:AS32,\">=10\")","v":0},null,"تحت المعدل",null,{"$f":"COUNTIF(AS7:AS36,\"<10\")","v":29},null,"معدل القسم",null,{"$f":"AVERAGE(AS7:AS32)","v":0}]
[]
[]
[]
[]
[]
["ثانوية :الشهيد سعيداني أحمد",null,null,null,"الفصل الثاني",null,null,null," الــــــــمادة : اللغة العربية و آدابهـــا"]
["القســــــــــــــــم: 3أ.فل",null,null,null,null,null,null,null,"الموسم الدراسى: 2019/2018"]
["الأستاذة : حـــــمان يمنى",null,null,null,null,null,null,null,"ولايــــــة : بشــــــار",null,null,null,null,null,"أنشطـــــــة التقويــــــــم"]
["القـــــــــــــــــــــــــائمة الاسمية للتلاميـــــــــــــــــــــــــــــــــــذ"]
[]
["الرقم","الاسم  و اللقب",null,"م.المستمرة","تط/شفهي","الفرض 1","الفرض 2","معدل الفروض","الاختبار","الاختبار/40","المعدل","الملاحظة",null,null,"تعبير كتابي","واجب منزلي","مشروع"]
[1,"بكيرات وليد","بكيرات وليد",null,null,null,null,{"$f":"(G50+F50)/2","v":0},null,{"$f":"I50*2","v":0},{"$f":"(J50+H50+E50+D50)/5","v":0},{"$f":"IF(I50>=18,\"نتائج ممتازة\",IF(I50>=14,\"نتائج جيدة جدا\",IF(I50>=12,\" نتائج جد حسنة\",IF(I50>=10,\"نتائج متوسطة\",IF(I50>=7,\"نتائج ضعيفة\",\"نتائج ضعيفة جدا\")))))","v":"نتائج ضعيفة جدا"}]
[{"$f":"A50+1","v":2},"بلبحري اكرام","بلبحري اكرام",null,null,null,null,{"$f":"(G51+F51)/2","v":0},null,{"$f":"I51*2","v":0},{"$f":"(J51+H51+E51+D51)/5","v":0},"نتائج ضعيفة جدا"]
[{"$f":"A51+1","v":3},"بن احمد روميسة","بن احمد روميسة",null,null,null,null,0,null,0,0,"نتائج ضعيفة جدا"]
[{"$f":"A52+1","v":4},"بن ديدة اسلام","بن ديدة اسلام",null,null,null,null,0,null,0,0,"نتائج ضعيفة جدا"]
[5,"بن شكشك إلهام","بن شكشك إلهام",null,null,null,null,0,null,0,0,"نتائج ضعيفة جدا"]
[6,"بن شهرة زوبيدة","بن شهرة زوبيدة",null,null,null,null,0,null,0,0,"نتائج ضعيفة جدا"]
[7,"بن عامر أمال","بن عامر أمال",null,null,null,null,0,null,0,0,"نتائج ضعيفة جدا"]
[{"$f":"A56+1","v":8},"بن على محمد شرف الدين","بن على محمد شرف الدين",null,null,null,null,0,null,0,0,"نتائج ضعيفة جدا"]
[9,"بن علي محمد","بن علي محمد",null,null,null,null,0,null,0,0,"نتائج ضعيفة جدا"]
[10,"بن مجدوب عبد القادر صلاح الدين","بن مجدوب عبد القادر صلاح الدين",null,null,null,null,0,null,0,0,"نتائج ضعيفة جدا"]
[11,"بن ميلود هاجر","بن ميلود هاجر",null,null,null,null,0,null,0,0,"نتائج ضعيفة جدا"]
[12,"بيان ريا ض","بيان ريا ض",null,null,null,null,0,null,0,0,"نتائج ضعيفة جدا"]
[13,"حاكم ياسر","حاكم ياسر",null,null,null,null,0,null,0,0,"نتائج ضعيفة جدا"]
[14,"حبيبي مروة","حبيبي مروة",null,null,null,null,0,null,0,0,"نتائج ضعيفة جدا"]
[15,"خالفي محمد","خالفي محمد",null,null,null,null,0,null,0,0,"نتائج ضعيفة جدا"]
[16,"دحمان معاد عصام الدين","دحمان معاد عصام الدين",null,null,null,null,0,null,0,0,"نتائج ضعيفة جدا"]
[17,"دلاس فاطمة الزهراء","دلاس فاطمة الزهراء",null,null,null,null,0,null,0,0,"نتائج ضعيفة جدا"]
[18,"زباش عائشة","زباش عائشة",null,null,null,null,0,null,0,0,"نتائج ضعيفة جدا"]
[19,"ساعي اكرام","ساعي اكرام",null,null,null,null,0,null,0,0,"نتائج ضعيفة جدا"]
[20,"شنتوف صباح","شنتوف صباح",null,null,null,null,0,null,0,0,"نتائج ضعيفة جدا"]
[21,"صالحي صافية","صالحي صافية",null,null,null,null,0,null,0,0,"نتائج ضعيفة جدا"]
[22,"عماري طارق","عماري طارق",null,null,null,null,0,null,0,0,"نتائج ضعيفة جدا"]
[23,"عمير محمد","عمير محمد",null,null,null,null,0,null,0,0,"نتائج ضعيفة جدا"]
[24,"قندوزي عيدة","قندوزي عيدة",null,null,null,null,0,null,0,0,"نتائج ضعيفة جدا"]
[25,"كبريت عائشة",null,null,null,null,null,0,null,0,0,"نتائج ضعيفة جدا"]
[26,"مبروكي روميسة","كبريت عائشة",null,null,null,null,0,null,0,0,"نتائج ضعيفة جدا"]
[27,"مجدوب إلياس",null,null,null,null,null,0,null,0,0,"نتائج ضعيفة جدا"]
[28,"معطي صفاء",null,null,null,null,null,0,null,0,0,"نتائج ضعيفة جدا"]
[29,"هدلي مريم",null,null,null,null,null,0,null,0,0,"نتائج ضعيفة جدا"]
[]
[]
[null,"فوق المعدل","معطي صفاء",{"$f":"COUNTIF(K50:K78,\">=10\")","v":0},null,"تحت المعدل",null,{"$f":"COUNTIF(K50:K78,\"<10\")","v":29},null,"معدل القسم",null,{"$f":"AVERAGE(K50:K78)","v":0}]
[]
[]
[]
[]
[]
["ثانوية :الشهيد سعيداني أحمد",null,null,null,"الفصل الثالث",null,null,null,"الــــــــمادة : اللغة العربية و آدابهـــا"]
["القســــــــــــــــم: 3أ.فل",null,null,null,null,null,null,null,"الموسم الدراسى: 2019/2018"]
["الأستاذة : حـــــمان يمنى",null,null,null,null,null,null,null,"ولايــــــة : بشــــــار",null,null,null,null,null,"أنشطـــــــة التقويــــــــم"]
["القـــــــــــــــــــــــــائمة الاسمية للتلاميـــــــــــــــــــــــــــــــــــذ"]
[]
["الرقم","الاسم  و اللقب",null,"م.المستمرة","تط/شفهي","الفرض 1","الفرض 2","معدل الفروض","الاختبار","الاختبار/40","المعدل","الملاحظة",null,null,"تعبير كتابي","واجب منزلي","مشروع"]
[1,"بكيرات وليد","بكيرات وليد",null,null,null,null,{"$f":"(G93+F93)/2","v":0},null,{"$f":"I93*2","v":0},{"$f":"(J93+H93+E93+D93)/5","v":0},{"$f":"IF(I93>=18,\"نتائج ممتازة\",IF(I93>=14,\"نتائج جيدة جدا\",IF(I93>=12,\" نتائج جد حسنة\",IF(I93>=10,\"نتائج متوسطة\",IF(I93>=7,\"نتائج ضعيفة\",\"نتائج ضعيفة جدا\")))))","v":"نتائج ضعيفة جدا"}]
[{"$f":"A93+1","v":2},"بلبحري اكرام","بلبحري اكرام",null,null,null,null,{"$f":"(G94+F94)/2","v":0},null,{"$f":"I94*2","v":0},{"$f":"(J94+H94+E94+D94)/5","v":0},"نتائج ضعيفة جدا"]
[{"$f":"A94+1","v":3},"بن احمد روميسة","بن احمد روميسة",null,null,null,null,0,null,0,0,"نتائج ضعيفة جدا"]
[{"$f":"A95+1","v":4},"بن ديدة اسلام","بن ديدة اسلام",null,null,null,null,0,null,0,0,"نتائج ضعيفة جدا"]
[5,"بن شكشك إلهام","بن شكشك إلهام",null,null,null,null,0,null,0,0,"نتائج ضعيفة جدا"]
[6,"بن شهرة زوبيدة","بن شهرة زوبيدة",null,null,null,null,0,null,0,0,"نتائج ضعيفة جدا"]
[7,"بن عامر أمال","بن عامر أمال",null,null,null,null,0,null,0,0,"نتائج ضعيفة جدا"]
[{"$f":"A99+1","v":8},"بن على محمد شرف الدين","بن على محمد شرف الدين",null,null,null,null,0,null,0,0,"نتائج ضعيفة جدا"]
[9,"بن علي محمد","بن علي محمد",null,null,null,null,0,null,0,0,"نتائج ضعيفة جدا"]
[10,"بن مجدوب عبد القادر صلاح الدين","بن مجدوب عبد القادر صلاح الدين",null,null,null,null,0,null,0,0,"نتائج ضعيفة جدا"]
[11,"بن ميلود هاجر","بن ميلود هاجر",null,null,null,null,0,null,0,0,"نتائج ضعيفة جدا"]
[12,"بيان ريا ض","بيان ريا ض",null,null,null,null,0,null,0,0,"نتائج ضعيفة جدا"]
[13,"حاكم ياسر","حاكم ياسر",null,null,null,null,0,null,0,0,"نتائج ضعيفة جدا"]
[14,"حبيبي مروة","حبيبي مروة",null,null,null,null,0,null,0,0,"نتائج ضعيفة جدا"]
[15,"خالفي محمد","خالفي محمد",null,null,null,null,0,null,0,0,"نتائج ضعيفة جدا"]
[16,"دحمان معاد عصام الدين","دحمان معاد عصام الدين",null,null,null,null,0,null,0,0,"نتائج ضعيفة جدا"]
[17,"دلاس فاطمة الزهراء","دلاس فاطمة الزهراء",null,null,null,null,0,null,0,0,"نتائج ضعيفة جدا"]
[18,"زباش عائشة","زباش عائشة",null,null,null,null,0,null,0,0,"نتائج ضعيفة جدا"]
[19,"ساعي اكرام","ساعي اكرام",null,null,null,null,0,null,0,0,"نتائج ضعيفة جدا"]
[20,"شنتوف صباح","شنتوف صباح",null,null,null,null,0,null,0,0,"نتائج ضعيفة جدا"]
[21,"صالحي صافية","صالحي صافية",null,null,null,null,0,null,0,0,"نتائج ضعيفة جدا"]
[22,"عماري طارق","عماري طارق",null,null,null,null,0,null,0,0,"نتائج ضعيفة جدا"]
[23,"عمير محمد","عمير محمد",null,null,null,null,0,null,0,0,"نتائج ضعيفة جدا"]
[24,"قندوزي عيدة","قندوزي عيدة",null,null,null,null,0,null,0,0,"نتائج ضعيفة جدا"]
[25,"كبريت عائشة",null,null,null,null,null,0,null,0,0,"نتائج ضعيفة جدا"]
[26,"مبروكي روميسة","كبريت عائشة",null,null,null,null,0,null,0,0,"نتائج ضعيفة جدا"]
[27,"مجدوب إلياس",null,null,null,null,null,0,null,0,0,"نتائج ضعيفة جدا"]
[28,"معطي صفاء",null,null,null,null,null,0,null,0,0,"نتائج ضعيفة جدا"]
[29,"هدلي مريم",null,null,null,null,null,0,null,0,0,"نتائج ضعيفة جدا"]
[]
[]
[null,"فوق المعدل","معطي صفاء",{"$f":"COUNTIF(K93:K121,\">=10\")","v":0},null,"تحت المعدل",null,{"$f":"COUNTIF(K93:K121,\"<10\")","v":29},null,"معدل القسم",null,{"$f":"AVERAGE(K93:K121)","v":0}]